Department family,Entity,Date,Expense Type,Expense area,Supplier,Transaction number,AP Amount (�)
Department of Health,NHS Sheffield CCG,31/08/2019,C&M-PMS Contract Value,PRC DELEGATED CO-COMMISSIONING,ABBEY LANE SURGERY,28454664,"23,782.31 "
Department of Health,NHS Sheffield CCG,31/08/2019,C&M-PMS DES Minor Surgery,PRC DELEGATED CO-COMMISSIONING,ABBEY LANE SURGERY,28454664,160.00 
Department of Health,NHS Sheffield CCG,31/08/2019,C&M-PMS Out of Hours Opt Outs,PRC DELEGATED CO-COMMISSIONING,ABBEY LANE SURGERY,28454664,39.68 
Department of Health,NHS Sheffield CCG,31/08/2019,C&M-PMS PCN DES Participation,PRC DELEGATED CO-COMMISSIONING,ABBEY LANE SURGERY,28454664,452.23 
Department of Health,NHS Sheffield CCG,31/08/2019,C&M-PMS PCO Locum Adop/Pat/Mat,PRC DELEGATED CO-COMMISSIONING,ABBEY LANE SURGERY,28454664,"30,090.84 "
Department of Health,NHS Sheffield CCG,31/08/2019,C&M-PMS Prem Notional Rent,PRC DELEGATED CO-COMMISSIONING,ABBEY LANE SURGERY,28454664,"2,122.92 "
Department of Health,NHS Sheffield CCG,31/08/2019,C&M-PMS QOF Aspiration,PRC DELEGATED CO-COMMISSIONING,ABBEY LANE SURGERY,28454664,"2,636.98 "
Department of Health,NHS Sheffield CCG,31/08/2019,Cont Care-Physical Disab (65+),CHC ADULT FULLY FUNDED,ABBEYCARE NURSING,28505621,"53,446.17 "
Department of Health,NHS Sheffield CCG,31/08/2019,C&M-PMS Contract Value,PRC DELEGATED CO-COMMISSIONING,AVENUE MEDICAL CENTRE SHEFFIELD,28454662,"55,174.87 "
Department of Health,NHS Sheffield CCG,31/08/2019,C&M-PMS Out of Hours Opt Outs,PRC DELEGATED CO-COMMISSIONING,AVENUE MEDICAL CENTRE SHEFFIELD,28454662,20.56 
Department of Health,NHS Sheffield CCG,31/08/2019,C&M-PMS PCN DES Participation,PRC DELEGATED CO-COMMISSIONING,AVENUE MEDICAL CENTRE SHEFFIELD,28454662,"1,058.32 "
Department of Health,NHS Sheffield CCG,31/08/2019,C&M-PMS PCO Other,PRC DELEGATED CO-COMMISSIONING,AVENUE MEDICAL CENTRE SHEFFIELD,28454662,460.30 
Department of Health,NHS Sheffield CCG,31/08/2019,C&M-PMS Prem Notional Rent,PRC DELEGATED CO-COMMISSIONING,AVENUE MEDICAL CENTRE SHEFFIELD,28454662,"5,546.67 "
Department of Health,NHS Sheffield CCG,31/08/2019,C&M-PMS Prem Rates,PRC DELEGATED CO-COMMISSIONING,AVENUE MEDICAL CENTRE SHEFFIELD,28454662,"1,264.00 "
Department of Health,NHS Sheffield CCG,31/08/2019,C&M-PMS QOF Aspiration,PRC DELEGATED CO-COMMISSIONING,AVENUE MEDICAL CENTRE SHEFFIELD,28454662,"5,847.72 "
Department of Health,NHS Sheffield CCG,31/08/2019,Hcare Srv Rec Fdtn Trust-Contract Baseline,ACUTE COMMISSIONING,BARNSLEY HOSPITAL NHS FOUNDATION TRUST,28439490,"86,710.00 "
Department of Health,NHS Sheffield CCG,31/08/2019,C&M-PMS Contract Value,PRC DELEGATED CO-COMMISSIONING,BARNSLEY ROAD SURGERY,28485135,"21,707.99 "
Department of Health,NHS Sheffield CCG,31/08/2019,C&M-PMS PCN DES Participation,PRC DELEGATED CO-COMMISSIONING,BARNSLEY ROAD SURGERY,28485135,410.63 
Department of Health,NHS Sheffield CCG,31/08/2019,C&M-PMS PCO Other,PRC DELEGATED CO-COMMISSIONING,BARNSLEY ROAD SURGERY,28485135,"1,999.00 "
Department of Health,NHS Sheffield CCG,31/08/2019,C&M-PMS Prem Notional Rent,PRC DELEGATED CO-COMMISSIONING,BARNSLEY ROAD SURGERY,28485135,"2,652.17 "
Department of Health,NHS Sheffield CCG,31/08/2019,C&M-PMS QOF Aspiration,PRC DELEGATED CO-COMMISSIONING,BARNSLEY ROAD SURGERY,28485135,"2,377.21 "
Department of Health,NHS Sheffield CCG,31/08/2019,C&M-GMS Global Sum,PRC DELEGATED CO-COMMISSIONING,BASLOW ROAD & SHOREHAM STREET SURGERIES,28694085,"97,980.73 "
Department of Health,NHS Sheffield CCG,31/08/2019,C&M-GMS MPIG Correction Factor,PRC DELEGATED CO-COMMISSIONING,BASLOW ROAD & SHOREHAM STREET SURGERIES,28694085,146.21 
Department of Health,NHS Sheffield CCG,31/08/2019,C&M-GMS PCN DES Participation,PRC DELEGATED CO-COMMISSIONING,BASLOW ROAD & SHOREHAM STREET SURGERIES,28694085,"2,012.54 "
Department of Health,NHS Sheffield CCG,31/08/2019,C&M-GMS Prem Notional Rent,PRC DELEGATED CO-COMMISSIONING,BASLOW ROAD & SHOREHAM STREET SURGERIES,28694085,"8,222.71 "
Department of Health,NHS Sheffield CCG,31/08/2019,C&M-GMS Prem Rates,PRC DELEGATED CO-COMMISSIONING,BASLOW ROAD & SHOREHAM STREET SURGERIES,28694085,"2,421.00 "
Department of Health,NHS Sheffield CCG,31/08/2019,C&M-GMS Prem Water Rates,PRC DELEGATED CO-COMMISSIONING,BASLOW ROAD & SHOREHAM STREET SURGERIES,28694085,318.92 
Department of Health,NHS Sheffield CCG,31/08/2019,C&M-GMS QOF Aspiration,PRC DELEGATED CO-COMMISSIONING,BASLOW ROAD & SHOREHAM STREET SURGERIES,28694085,"10,278.96 "
Department of Health,NHS Sheffield CCG,31/08/2019,Cont Care-Physical Disab (65+),CHC ADULT FULLY FUNDED,BC SHEFFIELD LTD,28505892,"39,504.07 "
Department of Health,NHS Sheffield CCG,31/08/2019,C&M-PMS Contract Value,PRC DELEGATED CO-COMMISSIONING,BIRLEY HEALTH CENTRE,28454667,"64,200.96 "
Department of Health,NHS Sheffield CCG,31/08/2019,C&M-PMS DES Learn Dsblty Hlth Chk,PRC DELEGATED CO-COMMISSIONING,BIRLEY HEALTH CENTRE,28454667,"1,260.00 "
Department of Health,NHS Sheffield CCG,31/08/2019,C&M-PMS DES Minor Surgery,PRC DELEGATED CO-COMMISSIONING,BIRLEY HEALTH CENTRE,28454667,"2,845.00 "
Department of Health,NHS Sheffield CCG,31/08/2019,C&M-PMS PCN DES Participation,PRC DELEGATED CO-COMMISSIONING,BIRLEY HEALTH CENTRE,28454667,"1,209.32 "
Department of Health,NHS Sheffield CCG,31/08/2019,C&M-PMS PCO Other,PRC DELEGATED CO-COMMISSIONING,BIRLEY HEALTH CENTRE,28454667,535.90 
Department of Health,NHS Sheffield CCG,31/08/2019,C&M-PMS Prem Notional Rent,PRC DELEGATED CO-COMMISSIONING,BIRLEY HEALTH CENTRE,28454667,"7,600.58 "
Department of Health,NHS Sheffield CCG,31/08/2019,C&M-PMS Prem Rates,PRC DELEGATED CO-COMMISSIONING,BIRLEY HEALTH CENTRE,28454667,"1,407.00 "
Department of Health,NHS Sheffield CCG,31/08/2019,C&M-PMS QOF Aspiration,PRC DELEGATED CO-COMMISSIONING,BIRLEY HEALTH CENTRE,28454667,"7,981.39 "
Department of Health,NHS Sheffield CCG,31/08/2019,Clinical&Medical-Independent Sector,ACUTE COMMISSIONING,BMI HEALTHCARE LTD,28526431,"59,155.50 "
Department of Health,NHS Sheffield CCG,31/08/2019,Cont Care-Physical Disab (<65),CHC ADULT FULLY FUNDED,BONDCARE,28505525,"25,284.92 "
Department of Health,NHS Sheffield CCG,31/08/2019,Cont Care-Funded Nursing Care Allow,FUNDED NURSING CARE,BONDCARE,28505693,"38,315.09 "
Department of Health,NHS Sheffield CCG,31/08/2019,C&M-GMS Cost of Drugs -Prescribing,LOCAL ENHANCED SERVICES,BROOMHILL SURGERY,28694092,"1,885.08 "
Department of Health,NHS Sheffield CCG,31/08/2019,C&M-GMS DES Minor Surgery,PRC DELEGATED CO-COMMISSIONING,BROOMHILL SURGERY,28694092,445.00 
Department of Health,NHS Sheffield CCG,31/08/2019,C&M-GMS Global Sum,PRC DELEGATED CO-COMMISSIONING,BROOMHILL SURGERY,28694092,"64,875.57 "
Department of Health,NHS Sheffield CCG,31/08/2019,C&M-GMS MPIG Correction Factor,PRC DELEGATED CO-COMMISSIONING,BROOMHILL SURGERY,28694092,251.00 
Department of Health,NHS Sheffield CCG,31/08/2019,C&M-GMS PCN DES Participation,PRC DELEGATED CO-COMMISSIONING,BROOMHILL SURGERY,28694092,"1,318.50 "
Department of Health,NHS Sheffield CCG,31/08/2019,C&M-GMS Prem Cost Rent,PRC DELEGATED CO-COMMISSIONING,BROOMHILL SURGERY,28694092,"2,413.75 "
Department of Health,NHS Sheffield CCG,31/08/2019,C&M-GMS Prem Notional Rent,PRC DELEGATED CO-COMMISSIONING,BROOMHILL SURGERY,28694092,"2,612.50 "
Department of Health,NHS Sheffield CCG,31/08/2019,C&M-GMS Prem Rates,PRC DELEGATED CO-COMMISSIONING,BROOMHILL SURGERY,28694092,"1,891.00 "
Department of Health,NHS Sheffield CCG,31/08/2019,C&M-GMS Prof Fees Prescribing,PRC DELEGATED CO-COMMISSIONING,BROOMHILL SURGERY,28694092,96.21 
Department of Health,NHS Sheffield CCG,31/08/2019,C&M-GMS QOF Aspiration,PRC DELEGATED CO-COMMISSIONING,BROOMHILL SURGERY,28694092,"6,211.39 "
Department of Health,NHS Sheffield CCG,31/08/2019,C&M-GMS IT Comm Servs -GP Practices,PRIMARY CARE IT,BT GLOBAL SERVICES,28659420,"24,847.64 "
Department of Health,NHS Sheffield CCG,31/08/2019,Computer Software/License,CORPORATE COSTS & SERVICES,BT GLOBAL SERVICES,28659420,"3,596.52 "
Department of Health,NHS Sheffield CCG,31/08/2019,C&M-GMS Cost of Drugs -Prescribing,LOCAL ENHANCED SERVICES,BUCHANAN ROAD SURGERY,28694088,11.56 
Department of Health,NHS Sheffield CCG,31/08/2019,C&M-GMS DES Minor Surgery,PRC DELEGATED CO-COMMISSIONING,BUCHANAN ROAD SURGERY,28694088,200.00 
Department of Health,NHS Sheffield CCG,31/08/2019,C&M-GMS Global Sum,PRC DELEGATED CO-COMMISSIONING,BUCHANAN ROAD SURGERY,28694088,"36,082.57 "
Department of Health,NHS Sheffield CCG,31/08/2019,C&M-GMS MPIG Correction Factor,PRC DELEGATED CO-COMMISSIONING,BUCHANAN ROAD SURGERY,28694088,655.25 
Department of Health,NHS Sheffield CCG,31/08/2019,C&M-GMS PCN DES Participation,PRC DELEGATED CO-COMMISSIONING,BUCHANAN ROAD SURGERY,28694088,736.41 
Department of Health,NHS Sheffield CCG,31/08/2019,C&M-GMS Prem Notional Rent,PRC DELEGATED CO-COMMISSIONING,BUCHANAN ROAD SURGERY,28694088,"2,595.83 "
Department of Health,NHS Sheffield CCG,31/08/2019,C&M-GMS Prem Rates,PRC DELEGATED CO-COMMISSIONING,BUCHANAN ROAD SURGERY,28694088,884.00 
Department of Health,NHS Sheffield CCG,31/08/2019,C&M-GMS Prof Fees Prescribing,PRC DELEGATED CO-COMMISSIONING,BUCHANAN ROAD SURGERY,28694088,4.81 
Department of Health,NHS Sheffield CCG,31/08/2019,C&M-GMS QOF Aspiration,PRC DELEGATED CO-COMMISSIONING,BUCHANAN ROAD SURGERY,28694088,"4,303.24 "
Department of Health,NHS Sheffield CCG,31/08/2019,C&M-PMS Contract Value,PRC DELEGATED CO-COMMISSIONING,BURNCROSS SURGERY,28454669,"121,145.86 "
Department of Health,NHS Sheffield CCG,31/08/2019,C&M-PMS DES Learn Dsblty Hlth Chk,PRC DELEGATED CO-COMMISSIONING,BURNCROSS SURGERY,28454669,"2,800.00 "
Department of Health,NHS Sheffield CCG,31/08/2019,C&M-PMS DES Minor Surgery,PRC DELEGATED CO-COMMISSIONING,BURNCROSS SURGERY,28454669,"2,640.00 "
Department of Health,NHS Sheffield CCG,31/08/2019,C&M-PMS PCN DES Participation,PRC DELEGATED CO-COMMISSIONING,BURNCROSS SURGERY,28454669,"2,292.15 "
Department of Health,NHS Sheffield CCG,31/08/2019,C&M-PMS Prem Notional Rent,PRC DELEGATED CO-COMMISSIONING,BURNCROSS SURGERY,28454669,"14,058.33 "
Department of Health,NHS Sheffield CCG,31/08/2019,C&M-PMS QOF Aspiration,PRC DELEGATED CO-COMMISSIONING,BURNCROSS SURGERY,28454669,"15,732.40 "
Department of Health,NHS Sheffield CCG,31/08/2019,C&M-PMS Contract Value,PRC DELEGATED CO-COMMISSIONING,BURNGREAVE SURGERY,28485137,"57,355.43 "
Department of Health,NHS Sheffield CCG,31/08/2019,C&M-PMS Out of Hours Opt Outs,PRC DELEGATED CO-COMMISSIONING,BURNGREAVE SURGERY,28485137,13.40 
Department of Health,NHS Sheffield CCG,31/08/2019,C&M-PMS PCN DES Participation,PRC DELEGATED CO-COMMISSIONING,BURNGREAVE SURGERY,28485137,"1,088.98 "
Department of Health,NHS Sheffield CCG,31/08/2019,C&M-PMS Prem Notional Rent,PRC DELEGATED CO-COMMISSIONING,BURNGREAVE SURGERY,28485137,"6,622.92 "
Department of Health,NHS Sheffield CCG,31/08/2019,C&M-PMS Prem Rates,PRC DELEGATED CO-COMMISSIONING,BURNGREAVE SURGERY,28485137,"2,140.00 "
Department of Health,NHS Sheffield CCG,31/08/2019,C&M-PMS QOF Aspiration,PRC DELEGATED CO-COMMISSIONING,BURNGREAVE SURGERY,28485137,"5,288.96 "
Department of Health,NHS Sheffield CCG,31/08/2019,C&M-GMS Cost of Drugs -Prescribing,LOCAL ENHANCED SERVICES,CARTERKNOWLE & DORE MEDICAL PRACTICE,28694097,"3,152.78 "
Department of Health,NHS Sheffield CCG,31/08/2019,C&M-GMS DES Minor Surgery,PRC DELEGATED CO-COMMISSIONING,CARTERKNOWLE & DORE MEDICAL PRACTICE,28694097,"2,640.00 "
Department of Health,NHS Sheffield CCG,31/08/2019,C&M-GMS Global Sum,PRC DELEGATED CO-COMMISSIONING,CARTERKNOWLE & DORE MEDICAL PRACTICE,28694097,"84,559.05 "
Department of Health,NHS Sheffield CCG,31/08/2019,C&M-GMS MPIG Correction Factor,PRC DELEGATED CO-COMMISSIONING,CARTERKNOWLE & DORE MEDICAL PRACTICE,28694097,747.29 
Department of Health,NHS Sheffield CCG,31/08/2019,C&M-GMS PCN DES Participation,PRC DELEGATED CO-COMMISSIONING,CARTERKNOWLE & DORE MEDICAL PRACTICE,28694097,"1,742.96 "
Department of Health,NHS Sheffield CCG,31/08/2019,C&M-GMS Prem Notional Rent,PRC DELEGATED CO-COMMISSIONING,CARTERKNOWLE & DORE MEDICAL PRACTICE,28694097,"7,596.50 "
Department of Health,NHS Sheffield CCG,31/08/2019,C&M-GMS Prem Rates,PRC DELEGATED CO-COMMISSIONING,CARTERKNOWLE & DORE MEDICAL PRACTICE,28694097,"9,807.95 "
Department of Health,NHS Sheffield CCG,31/08/2019,C&M-GMS Prof Fees Prescribing,PRC DELEGATED CO-COMMISSIONING,CARTERKNOWLE & DORE MEDICAL PRACTICE,28694097,194.82 
Department of Health,NHS Sheffield CCG,31/08/2019,C&M-GMS QOF Aspiration,PRC DELEGATED CO-COMMISSIONING,CARTERKNOWLE & DORE MEDICAL PRACTICE,28694097,"10,055.02 "
Department of Health,NHS Sheffield CCG,31/08/2019,C&M-GMS Cost of Drugs -Prescribing,LOCAL ENHANCED SERVICES,CHARNOCK HEALTH PRIMARY CARE CENTRE,28694094,"1,417.42 "
Department of Health,NHS Sheffield CCG,31/08/2019,C&M-GMS DES Learn Dsblty Hlth Chk,PRC DELEGATED CO-COMMISSIONING,CHARNOCK HEALTH PRIMARY CARE CENTRE,28694094,140.00 
Department of Health,NHS Sheffield CCG,31/08/2019,C&M-GMS DES Minor Surgery,PRC DELEGATED CO-COMMISSIONING,CHARNOCK HEALTH PRIMARY CARE CENTRE,28694094,"2,170.00 "
Department of Health,NHS Sheffield CCG,31/08/2019,C&M-GMS Global Sum,PRC DELEGATED CO-COMMISSIONING,CHARNOCK HEALTH PRIMARY CARE CENTRE,28694094,"43,215.93 "
Department of Health,NHS Sheffield CCG,31/08/2019,C&M-GMS MPIG Correction Factor,PRC DELEGATED CO-COMMISSIONING,CHARNOCK HEALTH PRIMARY CARE CENTRE,28694094,206.62 
Department of Health,NHS Sheffield CCG,31/08/2019,C&M-GMS PCN DES Participation,PRC DELEGATED CO-COMMISSIONING,CHARNOCK HEALTH PRIMARY CARE CENTRE,28694094,869.33 
Department of Health,NHS Sheffield CCG,31/08/2019,C&M-GMS PCO Other,PRC DELEGATED CO-COMMISSIONING,CHARNOCK HEALTH PRIMARY CARE CENTRE,28694094,363.80 
Department of Health,NHS Sheffield CCG,31/08/2019,C&M-GMS Prem Notional Rent,PRC DELEGATED CO-COMMISSIONING,CHARNOCK HEALTH PRIMARY CARE CENTRE,28694094,335.00 
Department of Health,NHS Sheffield CCG,31/08/2019,C&M-GMS Prem Rates,PRC DELEGATED CO-COMMISSIONING,CHARNOCK HEALTH PRIMARY CARE CENTRE,28694094,"1,547.00 "
Department of Health,NHS Sheffield CCG,31/08/2019,C&M-GMS Prof Fees Prescribing,PRC DELEGATED CO-COMMISSIONING,CHARNOCK HEALTH PRIMARY CARE CENTRE,28694094,175.58 
Department of Health,NHS Sheffield CCG,31/08/2019,C&M-GMS QOF Aspiration,PRC DELEGATED CO-COMMISSIONING,CHARNOCK HEALTH PRIMARY CARE CENTRE,28694094,"4,932.79 "
Department of Health,NHS Sheffield CCG,31/08/2019,Hcare Srv Rec Fdtn Trust-Contract Baseline,ACUTE COMMISSIONING,CHESTERFIELD ROYAL HOSPITAL NHS FOUNDATION TRUST,28763111,"318,586.00 "
Department of Health,NHS Sheffield CCG,31/08/2019,Clinical&Medical-Voluntary Sector,CHILD AND ADOLESCENT MENTAL HEALTH,CHILDREN & YOUNG PEOPLES EMPOWERMENT PROJECT LTD,28738690,"34,057.00 "
Department of Health,NHS Sheffield CCG,31/08/2019,Clinical&Medical-Voluntary Sector,CHILD AND ADOLESCENT MENTAL HEALTH,CHILDREN & YOUNG PEOPLES EMPOWERMENT PROJECT LTD,28740013,"(34,057.00)"
Department of Health,NHS Sheffield CCG,31/08/2019,Clinical&Medical-Voluntary Sector,CHILD AND ADOLESCENT MENTAL HEALTH,CHILDREN & YOUNG PEOPLES EMPOWERMENT PROJECT LTD,28763238,"34,156.00 "
Department of Health,NHS Sheffield CCG,31/08/2019,Clinical&Medical-Independent Sector,ACUTE COMMISSIONING,CLAREMONT HOSPITAL,28526530,"66,095.00 "
Department of Health,NHS Sheffield CCG,31/08/2019,C&M-APMS Contract Value,PRC DELEGATED CO-COMMISSIONING,CLOVER CITY PRACTICE,28454755,"27,650.61 "
Department of Health,NHS Sheffield CCG,31/08/2019,C&M-APMS DES Minor Surgery,PRC DELEGATED CO-COMMISSIONING,CLOVER CITY PRACTICE,28454755,80.00 
Department of Health,NHS Sheffield CCG,31/08/2019,C&M-APMS PCN DES Participation,PRC DELEGATED CO-COMMISSIONING,CLOVER CITY PRACTICE,28454755,529.90 
Department of Health,NHS Sheffield CCG,31/08/2019,C&M-PMS QOF Aspiration,PRC DELEGATED CO-COMMISSIONING,CLOVER CITY PRACTICE,28454755,"1,537.57 "
Department of Health,NHS Sheffield CCG,31/08/2019,C&M-APMS Contract Value,PRC DELEGATED CO-COMMISSIONING,CLOVER GROUP PRACTICE,28454673,"128,443.04 "
Department of Health,NHS Sheffield CCG,31/08/2019,C&M-APMS DES Minor Surgery,PRC DELEGATED CO-COMMISSIONING,CLOVER GROUP PRACTICE,28454673,160.00 
Department of Health,NHS Sheffield CCG,31/08/2019,C&M-APMS PCN DES Participation,PRC DELEGATED CO-COMMISSIONING,CLOVER GROUP PRACTICE,28454673,"2,421.56 "
Department of Health,NHS Sheffield CCG,31/08/2019,C&M-APMS Prem Actual Rent,PRC DELEGATED CO-COMMISSIONING,CLOVER GROUP PRACTICE,28454673,"7,973.85 "
Department of Health,NHS Sheffield CCG,31/08/2019,C&M-APMS Prem Healthcentre Rent,PRC DELEGATED CO-COMMISSIONING,CLOVER GROUP PRACTICE,28454673,"59,658.86 "
Department of Health,NHS Sheffield CCG,31/08/2019,C&M-APMS Prem Notional Rent,PRC DELEGATED CO-COMMISSIONING,CLOVER GROUP PRACTICE,28454673,"2,804.17 "
Department of Health,NHS Sheffield CCG,31/08/2019,C&M-PMS QOF Aspiration,PRC DELEGATED CO-COMMISSIONING,CLOVER GROUP PRACTICE,28454673,"11,480.20 "
Department of Health,NHS Sheffield CCG,31/08/2019,Voids and Subsidies,PRC DELEGATED CO-COMMISSIONING,COMMUNITY HEALTH PARTNERSHIPS LTD,28659035,"37,050.51 "
Department of Health,NHS Sheffield CCG,31/08/2019,Voids and Subsidies,RECHARGES NHS PROPERTY SERVICES LTD,COMMUNITY HEALTH PARTNERSHIPS LTD,28659035,"117,396.67 "
Department of Health,NHS Sheffield CCG,31/08/2019,Cont Care-Funded Nursing Care Allow,FUNDED NURSING CARE,COUNTRY COURT CARE LTD,28505656,"26,418.49 "
Department of Health,NHS Sheffield CCG,31/08/2019,C&M-GMS Cost of Drugs -Prescribing,LOCAL ENHANCED SERVICES,CROOKES PRACTICE,28694102,744.30 
Department of Health,NHS Sheffield CCG,31/08/2019,C&M-GMS DES Learn Dsblty Hlth Chk,PRC DELEGATED CO-COMMISSIONING,CROOKES PRACTICE,28694102,"1,260.00 "
Department of Health,NHS Sheffield CCG,31/08/2019,C&M-GMS DES Minor Surgery,PRC DELEGATED CO-COMMISSIONING,CROOKES PRACTICE,28694102,85.00 
Department of Health,NHS Sheffield CCG,31/08/2019,C&M-GMS Global Sum,PRC DELEGATED CO-COMMISSIONING,CROOKES PRACTICE,28694102,"50,840.80 "
Department of Health,NHS Sheffield CCG,31/08/2019,C&M-GMS MPIG Correction Factor,PRC DELEGATED CO-COMMISSIONING,CROOKES PRACTICE,28694102,772.96 
Department of Health,NHS Sheffield CCG,31/08/2019,C&M-GMS PCN DES Participation,PRC DELEGATED CO-COMMISSIONING,CROOKES PRACTICE,28694102,"1,040.55 "
Department of Health,NHS Sheffield CCG,31/08/2019,C&M-GMS PCO Other,PRC DELEGATED CO-COMMISSIONING,CROOKES PRACTICE,28694102,"2,563.00 "
Department of Health,NHS Sheffield CCG,31/08/2019,C&M-GMS Prem Notional Rent,PRC DELEGATED CO-COMMISSIONING,CROOKES PRACTICE,28694102,"3,874.67 "
Department of Health,NHS Sheffield CCG,31/08/2019,C&M-GMS Prem Rates,PRC DELEGATED CO-COMMISSIONING,CROOKES PRACTICE,28694102,"1,510.00 "
Department of Health,NHS Sheffield CCG,31/08/2019,C&M-GMS Prof Fees Prescribing,PRC DELEGATED CO-COMMISSIONING,CROOKES PRACTICE,28694102,103.43 
Department of Health,NHS Sheffield CCG,31/08/2019,C&M-GMS QOF Aspiration,PRC DELEGATED CO-COMMISSIONING,CROOKES PRACTICE,28694102,"4,885.77 "
Department of Health,NHS Sheffield CCG,31/08/2019,C&M-PMS Contract Value,PRC DELEGATED CO-COMMISSIONING,DEEPCAR MEDICAL CENTRE,28454675,"41,997.92 "
Department of Health,NHS Sheffield CCG,31/08/2019,C&M-PMS Out of Hours Opt Outs,PRC DELEGATED CO-COMMISSIONING,DEEPCAR MEDICAL CENTRE,28454675,25.22 
Department of Health,NHS Sheffield CCG,31/08/2019,C&M-PMS PCN DES Participation,PRC DELEGATED CO-COMMISSIONING,DEEPCAR MEDICAL CENTRE,28454675,789.85 
Department of Health,NHS Sheffield CCG,31/08/2019,C&M-PMS Prem Healthcentre Rent,PRC DELEGATED CO-COMMISSIONING,DEEPCAR MEDICAL CENTRE,28454675,"29,915.44 "
Department of Health,NHS Sheffield CCG,31/08/2019,C&M-PMS QOF Aspiration,PRC DELEGATED CO-COMMISSIONING,DEEPCAR MEDICAL CENTRE,28454675,"4,298.67 "
Department of Health,NHS Sheffield CCG,31/08/2019,External Consultancy Fees,BEREAVEMENT SERVICE,DELOITTE MCS LTD,28582686,"63,882.49 "
Department of Health,NHS Sheffield CCG,31/08/2019,C&M-GMS Cost of Drugs -Prescribing,LOCAL ENHANCED SERVICES,DEVONSHIRE GREEN MEDICAL CENTRE,28694105,601.30 
Department of Health,NHS Sheffield CCG,31/08/2019,C&M-GMS DES Extended Hours Access,PRC DELEGATED CO-COMMISSIONING,DEVONSHIRE GREEN MEDICAL CENTRE,28694105,"6,816.36 "
Department of Health,NHS Sheffield CCG,31/08/2019,C&M-GMS DES Minor Surgery,PRC DELEGATED CO-COMMISSIONING,DEVONSHIRE GREEN MEDICAL CENTRE,28694105,665.00 
Department of Health,NHS Sheffield CCG,31/08/2019,C&M-GMS Global Sum,PRC DELEGATED CO-COMMISSIONING,DEVONSHIRE GREEN MEDICAL CENTRE,28694105,"45,951.96 "
Department of Health,NHS Sheffield CCG,31/08/2019,C&M-GMS MPIG Correction Factor,PRC DELEGATED CO-COMMISSIONING,DEVONSHIRE GREEN MEDICAL CENTRE,28694105,"1,615.60 "
Department of Health,NHS Sheffield CCG,31/08/2019,C&M-GMS PCN DES Clinical Director,PRC DELEGATED CO-COMMISSIONING,DEVONSHIRE GREEN MEDICAL CENTRE,28694105,"3,188.00 "
Department of Health,NHS Sheffield CCG,31/08/2019,C&M-GMS PCN DES PCN support,LOCAL ENHANCED SERVICES,DEVONSHIRE GREEN MEDICAL CENTRE,28694105,"6,977.63 "
Department of Health,NHS Sheffield CCG,31/08/2019,C&M-GMS PCN DES Participation,PRC DELEGATED CO-COMMISSIONING,DEVONSHIRE GREEN MEDICAL CENTRE,28694105,931.75 
Department of Health,NHS Sheffield CCG,31/08/2019,C&M-GMS Prem Notional Rent,PRC DELEGATED CO-COMMISSIONING,DEVONSHIRE GREEN MEDICAL CENTRE,28694105,"5,987.50 "
Department of Health,NHS Sheffield CCG,31/08/2019,C&M-GMS Prem Rates,PRC DELEGATED CO-COMMISSIONING,DEVONSHIRE GREEN MEDICAL CENTRE,28694105,975.00 
Department of Health,NHS Sheffield CCG,31/08/2019,C&M-GMS Prof Fees Prescribing,PRC DELEGATED CO-COMMISSIONING,DEVONSHIRE GREEN MEDICAL CENTRE,28694105,98.62 
Department of Health,NHS Sheffield CCG,31/08/2019,C&M-GMS QOF Aspiration,PRC DELEGATED CO-COMMISSIONING,DEVONSHIRE GREEN MEDICAL CENTRE,28694105,"4,805.68 "
Department of Health,NHS Sheffield CCG,31/08/2019,Hcare Srv Rec Fdtn Trust-Contract Baseline,ACUTE COMMISSIONING,DONCASTER AND BASSETLAW HOSPITALS NHS FOUNDATION TRUST,28439692,"44,305.00 "
Department of Health,NHS Sheffield CCG,31/08/2019,C&M-PMS Contract Value,PRC DELEGATED CO-COMMISSIONING,DOVERCOURT SURGERY,28454677,"73,453.46 "
Department of Health,NHS Sheffield CCG,31/08/2019,C&M-PMS DES Minor Surgery,PRC DELEGATED CO-COMMISSIONING,DOVERCOURT SURGERY,28454677,"2,160.00 "
Department of Health,NHS Sheffield CCG,31/08/2019,C&M-PMS Out of Hours Opt Outs,PRC DELEGATED CO-COMMISSIONING,DOVERCOURT SURGERY,28454677,8.40 
Department of Health,NHS Sheffield CCG,31/08/2019,C&M-PMS PCN DES Participation,PRC DELEGATED CO-COMMISSIONING,DOVERCOURT SURGERY,28454677,"1,392.36 "
Department of Health,NHS Sheffield CCG,31/08/2019,C&M-PMS PCO Other,PRC DELEGATED CO-COMMISSIONING,DOVERCOURT SURGERY,28454677,536.10 
Department of Health,NHS Sheffield CCG,31/08/2019,C&M-PMS Prem Actual Rent,PRC DELEGATED CO-COMMISSIONING,DOVERCOURT SURGERY,28454677,"12,400.00 "
Department of Health,NHS Sheffield CCG,31/08/2019,C&M-PMS Prem Notional Rent,PRC DELEGATED CO-COMMISSIONING,DOVERCOURT SURGERY,28454677,"1,708.33 "
Department of Health,NHS Sheffield CCG,31/08/2019,C&M-PMS QOF Aspiration,PRC DELEGATED CO-COMMISSIONING,DOVERCOURT SURGERY,28454677,"7,675.00 "
Department of Health,NHS Sheffield CCG,31/08/2019,C&M-PMS Contract Value,PRC DELEGATED CO-COMMISSIONING,DR MEHROTRA & PARTNER,28454679,"26,407.40 "
Department of Health,NHS Sheffield CCG,31/08/2019,C&M-PMS PCN DES Participation,PRC DELEGATED CO-COMMISSIONING,DR MEHROTRA & PARTNER,28454679,501.42 
Department of Health,NHS Sheffield CCG,31/08/2019,C&M-PMS PCO Other,PRC DELEGATED CO-COMMISSIONING,DR MEHROTRA & PARTNER,28454679,237.80 
Department of Health,NHS Sheffield CCG,31/08/2019,C&M-PMS Prem Actual Rent,PRC DELEGATED CO-COMMISSIONING,DR MEHROTRA & PARTNER,28454679,"2,650.00 "
Department of Health,NHS Sheffield CCG,31/08/2019,C&M-PMS Prem Notional Rent,PRC DELEGATED CO-COMMISSIONING,DR MEHROTRA & PARTNER,28454679,"5,157.29 "
Department of Health,NHS Sheffield CCG,31/08/2019,C&M-PMS Prem Rates,PRC DELEGATED CO-COMMISSIONING,DR MEHROTRA & PARTNER,28454679,"1,606.00 "
Department of Health,NHS Sheffield CCG,31/08/2019,C&M-PMS QOF Aspiration,PRC DELEGATED CO-COMMISSIONING,DR MEHROTRA & PARTNER,28454679,"2,763.65 "
Department of Health,NHS Sheffield CCG,31/08/2019,C&M-PMS Contract Value,PRC DELEGATED CO-COMMISSIONING,DR MILNER & PARTNERS,28454681,"76,577.86 "
Department of Health,NHS Sheffield CCG,31/08/2019,C&M-PMS DES Learn Dsblty Hlth Chk,PRC DELEGATED CO-COMMISSIONING,DR MILNER & PARTNERS,28454681,"1,120.00 "
Department of Health,NHS Sheffield CCG,31/08/2019,C&M-PMS DES Minor Surgery,PRC DELEGATED CO-COMMISSIONING,DR MILNER & PARTNERS,28454681,"2,815.00 "
Department of Health,NHS Sheffield CCG,31/08/2019,C&M-PMS Out of Hours Opt Outs,PRC DELEGATED CO-COMMISSIONING,DR MILNER & PARTNERS,28454681,7.01 
Department of Health,NHS Sheffield CCG,31/08/2019,C&M-PMS PCN DES Participation,PRC DELEGATED CO-COMMISSIONING,DR MILNER & PARTNERS,28454681,"1,435.93 "
Department of Health,NHS Sheffield CCG,31/08/2019,C&M-PMS Prem Actual Rent,PRC DELEGATED CO-COMMISSIONING,DR MILNER & PARTNERS,28454681,"11,382.00 "
Department of Health,NHS Sheffield CCG,31/08/2019,C&M-PMS Prem Notional Rent,PRC DELEGATED CO-COMMISSIONING,DR MILNER & PARTNERS,28454681,"4,462.42 "
Department of Health,NHS Sheffield CCG,31/08/2019,C&M-PMS Prem Rates,PRC DELEGATED CO-COMMISSIONING,DR MILNER & PARTNERS,28454681,"2,593.00 "
Department of Health,NHS Sheffield CCG,31/08/2019,C&M-PMS Prem Water Rates,PRC DELEGATED CO-COMMISSIONING,DR MILNER & PARTNERS,28454681,967.25 
Department of Health,NHS Sheffield CCG,31/08/2019,C&M-PMS QOF Aspiration,PRC DELEGATED CO-COMMISSIONING,DR MILNER & PARTNERS,28454681,"6,513.90 "
Department of Health,NHS Sheffield CCG,31/08/2019,C&M-GMS Cost of Drugs -Prescribing,LOCAL ENHANCED SERVICES,DUKE MEDICAL CENTRE,28694113,717.38 
Department of Health,NHS Sheffield CCG,31/08/2019,C&M-GMS DES Minor Surgery,PRC DELEGATED CO-COMMISSIONING,DUKE MEDICAL CENTRE,28694113,640.00 
Department of Health,NHS Sheffield CCG,31/08/2019,C&M-GMS Global Sum,PRC DELEGATED CO-COMMISSIONING,DUKE MEDICAL CENTRE,28694113,"58,727.99 "
Department of Health,NHS Sheffield CCG,31/08/2019,C&M-GMS MPIG Correction Factor,PRC DELEGATED CO-COMMISSIONING,DUKE MEDICAL CENTRE,28694113,306.25 
Department of Health,NHS Sheffield CCG,31/08/2019,C&M-GMS PCN DES Participation,PRC DELEGATED CO-COMMISSIONING,DUKE MEDICAL CENTRE,28694113,"1,138.79 "
Department of Health,NHS Sheffield CCG,31/08/2019,C&M-GMS PCO Other,PRC DELEGATED CO-COMMISSIONING,DUKE MEDICAL CENTRE,28694113,458.30 
Department of Health,NHS Sheffield CCG,31/08/2019,C&M-GMS Prem Notional Rent,PRC DELEGATED CO-COMMISSIONING,DUKE MEDICAL CENTRE,28694113,"5,721.67 "
Department of Health,NHS Sheffield CCG,31/08/2019,C&M-GMS Prem Rates,PRC DELEGATED CO-COMMISSIONING,DUKE MEDICAL CENTRE,28694113,"1,311.00 "
Department of Health,NHS Sheffield CCG,31/08/2019,C&M-GMS Prem Water Rates,PRC DELEGATED CO-COMMISSIONING,DUKE MEDICAL CENTRE,28694113,55.12 
Department of Health,NHS Sheffield CCG,31/08/2019,C&M-GMS Prof Fees Prescribing,PRC DELEGATED CO-COMMISSIONING,DUKE MEDICAL CENTRE,28694113,211.65 
Department of Health,NHS Sheffield CCG,31/08/2019,C&M-GMS QOF Aspiration,PRC DELEGATED CO-COMMISSIONING,DUKE MEDICAL CENTRE,28694113,"5,166.69 "
Department of Health,NHS Sheffield CCG,31/08/2019,C&M-PMS Contract Value,PRC DELEGATED CO-COMMISSIONING,DUNNINC ROAD SURGERY,28454683,"23,711.72 "
Department of Health,NHS Sheffield CCG,31/08/2019,C&M-PMS DES Minor Surgery,PRC DELEGATED CO-COMMISSIONING,DUNNINC ROAD SURGERY,28454683,"2,615.00 "
Department of Health,NHS Sheffield CCG,31/08/2019,C&M-PMS PCN DES Participation,PRC DELEGATED CO-COMMISSIONING,DUNNINC ROAD SURGERY,28454683,448.76 
Department of Health,NHS Sheffield CCG,31/08/2019,C&M-PMS Prem Notional Rent,PRC DELEGATED CO-COMMISSIONING,DUNNINC ROAD SURGERY,28454683,"1,695.83 "
Department of Health,NHS Sheffield CCG,31/08/2019,C&M-PMS QOF Aspiration,PRC DELEGATED CO-COMMISSIONING,DUNNINC ROAD SURGERY,28454683,"2,054.91 "
Department of Health,NHS Sheffield CCG,31/08/2019,C&M-PMS Contract Value,PRC DELEGATED CO-COMMISSIONING,DYKES HALL MEDICAL CENTRE,28454685,"73,046.07 "
Department of Health,NHS Sheffield CCG,31/08/2019,C&M-PMS DES Extended Hours Access,PRC DELEGATED CO-COMMISSIONING,DYKES HALL MEDICAL CENTRE,28454685,"4,412.49 "
Department of Health,NHS Sheffield CCG,31/08/2019,C&M-PMS DES Minor Surgery,PRC DELEGATED CO-COMMISSIONING,DYKES HALL MEDICAL CENTRE,28454685,760.00 
Department of Health,NHS Sheffield CCG,31/08/2019,C&M-PMS Out of Hours Opt Outs,PRC DELEGATED CO-COMMISSIONING,DYKES HALL MEDICAL CENTRE,28454685,50.46 
Department of Health,NHS Sheffield CCG,31/08/2019,C&M-PMS PCN DES Clinical Director,PRC DELEGATED CO-COMMISSIONING,DYKES HALL MEDICAL CENTRE,28454685,"2,063.71 "
Department of Health,NHS Sheffield CCG,31/08/2019,C&M-PMS PCN DES PCN support,LOCAL ENHANCED SERVICES,DYKES HALL MEDICAL CENTRE,28454685,"4,516.88 "
Department of Health,NHS Sheffield CCG,31/08/2019,C&M-PMS PCN DES Participation,PRC DELEGATED CO-COMMISSIONING,DYKES HALL MEDICAL CENTRE,28454685,"1,386.86 "
Department of Health,NHS Sheffield CCG,31/08/2019,C&M-PMS PCO Other,PRC DELEGATED CO-COMMISSIONING,DYKES HALL MEDICAL CENTRE,28454685,"6,071.00 "
Department of Health,NHS Sheffield CCG,31/08/2019,C&M-PMS Prem Notional Rent,PRC DELEGATED CO-COMMISSIONING,DYKES HALL MEDICAL CENTRE,28454685,"5,377.08 "
Department of Health,NHS Sheffield CCG,31/08/2019,C&M-PMS QOF Aspiration,PRC DELEGATED CO-COMMISSIONING,DYKES HALL MEDICAL CENTRE,28454685,"8,323.49 "
Department of Health,NHS Sheffield CCG,31/08/2019,C&M-PMS Contract Value,PRC DELEGATED CO-COMMISSIONING,EAST BANK MEDICAL CENTRE,28454687,"48,782.19 "
Department of Health,NHS Sheffield CCG,31/08/2019,C&M-PMS DES Minor Surgery,PRC DELEGATED CO-COMMISSIONING,EAST BANK MEDICAL CENTRE,28454687,805.00 
Department of Health,NHS Sheffield CCG,31/08/2019,C&M-PMS PCN DES Participation,PRC DELEGATED CO-COMMISSIONING,EAST BANK MEDICAL CENTRE,28454687,914.08 
Department of Health,NHS Sheffield CCG,31/08/2019,C&M-PMS PCO Other,PRC DELEGATED CO-COMMISSIONING,EAST BANK MEDICAL CENTRE,28454687,"3,816.00 "
Department of Health,NHS Sheffield CCG,31/08/2019,C&M-PMS Prem Notional Rent,PRC DELEGATED CO-COMMISSIONING,EAST BANK MEDICAL CENTRE,28454687,"10,583.33 "
Department of Health,NHS Sheffield CCG,31/08/2019,C&M-PMS Prem Rates,PRC DELEGATED CO-COMMISSIONING,EAST BANK MEDICAL CENTRE,28454687,"2,898.00 "
Department of Health,NHS Sheffield CCG,31/08/2019,C&M-PMS QOF Aspiration,PRC DELEGATED CO-COMMISSIONING,EAST BANK MEDICAL CENTRE,28454687,"5,026.31 "
Department of Health,NHS Sheffield CCG,31/08/2019,C&M-GMS Cost of Drugs -Prescribing,LOCAL ENHANCED SERVICES,ECCLESFIELD GROUP PRACTICE,28694109,"1,927.39 "
Department of Health,NHS Sheffield CCG,31/08/2019,C&M-GMS DES Extended Hours Access,PRC DELEGATED CO-COMMISSIONING,ECCLESFIELD GROUP PRACTICE,28694109,"5,190.33 "
Department of Health,NHS Sheffield CCG,31/08/2019,C&M-GMS DES Learn Dsblty Hlth Chk,PRC DELEGATED CO-COMMISSIONING,ECCLESFIELD GROUP PRACTICE,28694109,700.00 
Department of Health,NHS Sheffield CCG,31/08/2019,C&M-GMS DES Minor Surgery,PRC DELEGATED CO-COMMISSIONING,ECCLESFIELD GROUP PRACTICE,28694109,"1,000.00 "
Department of Health,NHS Sheffield CCG,31/08/2019,C&M-GMS Global Sum,PRC DELEGATED CO-COMMISSIONING,ECCLESFIELD GROUP PRACTICE,28694109,"68,946.99 "
Department of Health,NHS Sheffield CCG,31/08/2019,C&M-GMS PCN DES Clinical Director,PRC DELEGATED CO-COMMISSIONING,ECCLESFIELD GROUP PRACTICE,28694109,"2,427.51 "
Department of Health,NHS Sheffield CCG,31/08/2019,C&M-GMS PCN DES PCN support,LOCAL ENHANCED SERVICES,ECCLESFIELD GROUP PRACTICE,28694109,"5,313.13 "
Department of Health,NHS Sheffield CCG,31/08/2019,C&M-GMS PCN DES Participation,PRC DELEGATED CO-COMMISSIONING,ECCLESFIELD GROUP PRACTICE,28694109,"1,400.97 "
Department of Health,NHS Sheffield CCG,31/08/2019,C&M-GMS PCO Other,PRC DELEGATED CO-COMMISSIONING,ECCLESFIELD GROUP PRACTICE,28694109,525.30 
Department of Health,NHS Sheffield CCG,31/08/2019,C&M-GMS Prem Notional Rent,PRC DELEGATED CO-COMMISSIONING,ECCLESFIELD GROUP PRACTICE,28694109,"6,805.42 "
Department of Health,NHS Sheffield CCG,31/08/2019,C&M-GMS Prem Rates,PRC DELEGATED CO-COMMISSIONING,ECCLESFIELD GROUP PRACTICE,28694109,"1,527.00 "
Department of Health,NHS Sheffield CCG,31/08/2019,C&M-GMS Prem Water Rates,PRC DELEGATED CO-COMMISSIONING,ECCLESFIELD GROUP PRACTICE,28694109,509.94 
Department of Health,NHS Sheffield CCG,31/08/2019,C&M-GMS Prof Fees Prescribing,PRC DELEGATED CO-COMMISSIONING,ECCLESFIELD GROUP PRACTICE,28694109,223.68 
Department of Health,NHS Sheffield CCG,31/08/2019,C&M-GMS QOF Aspiration,PRC DELEGATED CO-COMMISSIONING,ECCLESFIELD GROUP PRACTICE,28694109,"9,179.49 "
Department of Health,NHS Sheffield CCG,31/08/2019,C&M-GMS Cost of Drugs -Prescribing,LOCAL ENHANCED SERVICES,ELM LANE SURGERY,28694111,"1,565.73 "
Department of Health,NHS Sheffield CCG,31/08/2019,C&M-GMS Global Sum,PRC DELEGATED CO-COMMISSIONING,ELM LANE SURGERY,28694111,"40,467.95 "
Department of Health,NHS Sheffield CCG,31/08/2019,C&M-GMS MPIG Correction Factor,PRC DELEGATED CO-COMMISSIONING,ELM LANE SURGERY,28694111,419.26 
Department of Health,NHS Sheffield CCG,31/08/2019,C&M-GMS PCN DES Participation,PRC DELEGATED CO-COMMISSIONING,ELM LANE SURGERY,28694111,821.44 
Department of Health,NHS Sheffield CCG,31/08/2019,C&M-GMS Prem Notional Rent,PRC DELEGATED CO-COMMISSIONING,ELM LANE SURGERY,28694111,"5,305.50 "
Department of Health,NHS Sheffield CCG,31/08/2019,C&M-GMS Prof Fees Prescribing,PRC DELEGATED CO-COMMISSIONING,ELM LANE SURGERY,28694111,122.66 
Department of Health,NHS Sheffield CCG,31/08/2019,C&M-GMS QOF Aspiration,PRC DELEGATED CO-COMMISSIONING,ELM LANE SURGERY,28694111,"4,720.25 "
Department of Health,NHS Sheffield CCG,31/08/2019,Cont Care-Physical Disab (<65),CHC ADULT FULLY FUNDED,FAIRWINDS HEALTH CARE LTD,28505514,"39,203.66 "
Department of Health,NHS Sheffield CCG,31/08/2019,C&M-PMS Contract Value,PRC DELEGATED CO-COMMISSIONING,FALKLAND HOUSE,28454691,"26,155.84 "
Department of Health,NHS Sheffield CCG,31/08/2019,C&M-PMS DES Minor Surgery,PRC DELEGATED CO-COMMISSIONING,FALKLAND HOUSE,28454691,920.00 
Department of Health,NHS Sheffield CCG,31/08/2019,C&M-PMS PCN DES Participation,PRC DELEGATED CO-COMMISSIONING,FALKLAND HOUSE,28454691,495.54 
Department of Health,NHS Sheffield CCG,31/08/2019,C&M-PMS PCO Other,PRC DELEGATED CO-COMMISSIONING,FALKLAND HOUSE,28454691,359.64 
Department of Health,NHS Sheffield CCG,31/08/2019,C&M-PMS Prem Notional Rent,PRC DELEGATED CO-COMMISSIONING,FALKLAND HOUSE,28454691,"1,866.67 "
Department of Health,NHS Sheffield CCG,31/08/2019,C&M-PMS Prem Rates,PRC DELEGATED CO-COMMISSIONING,FALKLAND HOUSE,28454691,773.00 
Department of Health,NHS Sheffield CCG,31/08/2019,C&M-PMS QOF Aspiration,PRC DELEGATED CO-COMMISSIONING,FALKLAND HOUSE,28454691,"2,925.24 "
Department of Health,NHS Sheffield CCG,31/08/2019,C&M-GMS Cost of Drugs -Prescribing,LOCAL ENHANCED SERVICES,FAR LANE MEDICAL CENTRE,28694120,363.20 
Department of Health,NHS Sheffield CCG,31/08/2019,C&M-GMS DES Minor Surgery,PRC DELEGATED CO-COMMISSIONING,FAR LANE MEDICAL CENTRE,28694120,"7,550.00 "
Department of Health,NHS Sheffield CCG,31/08/2019,C&M-GMS Global Sum,PRC DELEGATED CO-COMMISSIONING,FAR LANE MEDICAL CENTRE,28694120,"55,556.46 "
Department of Health,NHS Sheffield CCG,31/08/2019,C&M-GMS PCN DES Participation,PRC DELEGATED CO-COMMISSIONING,FAR LANE MEDICAL CENTRE,28694120,"1,138.48 "
Department of Health,NHS Sheffield CCG,31/08/2019,C&M-GMS PCO Other,PRC DELEGATED CO-COMMISSIONING,FAR LANE MEDICAL CENTRE,28694120,462.30 
Department of Health,NHS Sheffield CCG,31/08/2019,C&M-GMS Prem Notional Rent,PRC DELEGATED CO-COMMISSIONING,FAR LANE MEDICAL CENTRE,28694120,"3,462.50 "
Department of Health,NHS Sheffield CCG,31/08/2019,C&M-GMS Prem Rates,PRC DELEGATED CO-COMMISSIONING,FAR LANE MEDICAL CENTRE,28694120,"1,184.00 "
Department of Health,NHS Sheffield CCG,31/08/2019,C&M-GMS Prem Water Rates,PRC DELEGATED CO-COMMISSIONING,FAR LANE MEDICAL CENTRE,28694120,44.86 
Department of Health,NHS Sheffield CCG,31/08/2019,C&M-GMS Prof Fees Prescribing,PRC DELEGATED CO-COMMISSIONING,FAR LANE MEDICAL CENTRE,28694120,69.75 
Department of Health,NHS Sheffield CCG,31/08/2019,C&M-GMS QOF Aspiration,PRC DELEGATED CO-COMMISSIONING,FAR LANE MEDICAL CENTRE,28694120,"5,719.80 "
Department of Health,NHS Sheffield CCG,31/08/2019,C&M-PMS Contract Value,PRC DELEGATED CO-COMMISSIONING,FIRTH PARK SURGERY,28454689,"74,885.12 "
Department of Health,NHS Sheffield CCG,31/08/2019,C&M-PMS DES Minor Surgery,PRC DELEGATED CO-COMMISSIONING,FIRTH PARK SURGERY,28454689,"1,585.00 "
Department of Health,NHS Sheffield CCG,31/08/2019,C&M-PMS Out of Hours Opt Outs,PRC DELEGATED CO-COMMISSIONING,FIRTH PARK SURGERY,28454689,42.68 
Department of Health,NHS Sheffield CCG,31/08/2019,C&M-PMS PCN DES Participation,PRC DELEGATED CO-COMMISSIONING,FIRTH PARK SURGERY,28454689,"1,468.51 "
Department of Health,NHS Sheffield CCG,31/08/2019,C&M-PMS Prem Notional Rent,PRC DELEGATED CO-COMMISSIONING,FIRTH PARK SURGERY,28454689,"4,500.00 "
Department of Health,NHS Sheffield CCG,31/08/2019,C&M-PMS Prem Rates,PRC DELEGATED CO-COMMISSIONING,FIRTH PARK SURGERY,28454689,"1,360.00 "
Department of Health,NHS Sheffield CCG,31/08/2019,C&M-PMS QOF Aspiration,PRC DELEGATED CO-COMMISSIONING,FIRTH PARK SURGERY,28454689,"7,493.92 "
Department of Health,NHS Sheffield CCG,31/08/2019,C&M-PMS Contract Value,PRC DELEGATED CO-COMMISSIONING,FORGE HEALTH GROUP,28454751,"122,251.01 "
Department of Health,NHS Sheffield CCG,31/08/2019,C&M-PMS DES Extended Hours Access,PRC DELEGATED CO-COMMISSIONING,FORGE HEALTH GROUP,28454751,"6,869.48 "
Department of Health,NHS Sheffield CCG,31/08/2019,C&M-PMS DES Minor Surgery,PRC DELEGATED CO-COMMISSIONING,FORGE HEALTH GROUP,28454751,"2,110.00 "
Department of Health,NHS Sheffield CCG,31/08/2019,C&M-PMS Out of Hours Opt Outs,PRC DELEGATED CO-COMMISSIONING,FORGE HEALTH GROUP,28454751,10.15 
Department of Health,NHS Sheffield CCG,31/08/2019,C&M-PMS PCN DES Clinical Director,PRC DELEGATED CO-COMMISSIONING,FORGE HEALTH GROUP,28454751,"3,212.84 "
Department of Health,NHS Sheffield CCG,31/08/2019,C&M-PMS PCN DES PCN support,LOCAL ENHANCED SERVICES,FORGE HEALTH GROUP,28454751,"7,032.00 "
Department of Health,NHS Sheffield CCG,31/08/2019,C&M-PMS PCN DES Participation,PRC DELEGATED CO-COMMISSIONING,FORGE HEALTH GROUP,28454751,"2,225.15 "
Department of Health,NHS Sheffield CCG,31/08/2019,C&M-PMS PCO Other,PRC DELEGATED CO-COMMISSIONING,FORGE HEALTH GROUP,28454751,"9,233.00 "
Department of Health,NHS Sheffield CCG,31/08/2019,C&M-PMS Prem Healthcentre Rent,PRC DELEGATED CO-COMMISSIONING,FORGE HEALTH GROUP,28454751,"32,899.56 "
Department of Health,NHS Sheffield CCG,31/08/2019,C&M-PMS Prem Notional Rent,PRC DELEGATED CO-COMMISSIONING,FORGE HEALTH GROUP,28454751,"9,650.00 "
Department of Health,NHS Sheffield CCG,31/08/2019,C&M-PMS Prem Rates,PRC DELEGATED CO-COMMISSIONING,FORGE HEALTH GROUP,28454751,"1,990.00 "
Department of Health,NHS Sheffield CCG,31/08/2019,C&M-PMS QOF Aspiration,PRC DELEGATED CO-COMMISSIONING,FORGE HEALTH GROUP,28454751,"6,964.24 "
Department of Health,NHS Sheffield CCG,31/08/2019,Cont Care-Physical Disab (<65),CHC ADULT FULLY FUNDED,FOUR SEASONS HEALTH CARE LTD,28505523,"41,929.45 "
Department of Health,NHS Sheffield CCG,31/08/2019,C&M-PMS Contract Value,PRC DELEGATED CO-COMMISSIONING,FOXHILL MEDICAL CENTRE SHEFFIELD,28454747,"51,914.86 "
Department of Health,NHS Sheffield CCG,31/08/2019,C&M-PMS DES Learn Dsblty Hlth Chk,PRC DELEGATED CO-COMMISSIONING,FOXHILL MEDICAL CENTRE SHEFFIELD,28454747,"1,260.00 "
Department of Health,NHS Sheffield CCG,31/08/2019,C&M-PMS DES Minor Surgery,PRC DELEGATED CO-COMMISSIONING,FOXHILL MEDICAL CENTRE SHEFFIELD,28454747,405.00 
Department of Health,NHS Sheffield CCG,31/08/2019,C&M-PMS PCN DES Participation,PRC DELEGATED CO-COMMISSIONING,FOXHILL MEDICAL CENTRE SHEFFIELD,28454747,977.79 
Department of Health,NHS Sheffield CCG,31/08/2019,C&M-PMS PCO Other,PRC DELEGATED CO-COMMISSIONING,FOXHILL MEDICAL CENTRE SHEFFIELD,28454747,"2,003.00 "
Department of Health,NHS Sheffield CCG,31/08/2019,C&M-PMS Prem Healthcentre Rent,PRC DELEGATED CO-COMMISSIONING,FOXHILL MEDICAL CENTRE SHEFFIELD,28454747,"46,751.17 "
Department of Health,NHS Sheffield CCG,31/08/2019,C&M-PMS QOF Aspiration,PRC DELEGATED CO-COMMISSIONING,FOXHILL MEDICAL CENTRE SHEFFIELD,28454747,"5,618.87 "
Department of Health,NHS Sheffield CCG,31/08/2019,C&M-PMS Contract Value,PRC DELEGATED CO-COMMISSIONING,GLEADLESS MEDICAL CENTRE,28454693,"68,911.89 "
Department of Health,NHS Sheffield CCG,31/08/2019,C&M-PMS Out of Hours Opt Outs,PRC DELEGATED CO-COMMISSIONING,GLEADLESS MEDICAL CENTRE,28454693,2.58 
Department of Health,NHS Sheffield CCG,31/08/2019,C&M-PMS PCN DES Participation,PRC DELEGATED CO-COMMISSIONING,GLEADLESS MEDICAL CENTRE,28454693,"1,300.70 "
Department of Health,NHS Sheffield CCG,31/08/2019,C&M-PMS PCO Other,PRC DELEGATED CO-COMMISSIONING,GLEADLESS MEDICAL CENTRE,28454693,551.40 
Department of Health,NHS Sheffield CCG,31/08/2019,C&M-PMS Prem Notional Rent,PRC DELEGATED CO-COMMISSIONING,GLEADLESS MEDICAL CENTRE,28454693,"6,750.00 "
Department of Health,NHS Sheffield CCG,31/08/2019,C&M-PMS Prem Rates,PRC DELEGATED CO-COMMISSIONING,GLEADLESS MEDICAL CENTRE,28454693,"1,657.00 "
Department of Health,NHS Sheffield CCG,31/08/2019,C&M-PMS QOF Aspiration,PRC DELEGATED CO-COMMISSIONING,GLEADLESS MEDICAL CENTRE,28454693,"7,710.90 "
Department of Health,NHS Sheffield CCG,31/08/2019,C&M-GMS Cost of Drugs -Prescribing,LOCAL ENHANCED SERVICES,GRENOSIDE SURGERY,28694128,790.55 
Department of Health,NHS Sheffield CCG,31/08/2019,C&M-GMS DES Minor Surgery,PRC DELEGATED CO-COMMISSIONING,GRENOSIDE SURGERY,28694128,570.00 
Department of Health,NHS Sheffield CCG,31/08/2019,C&M-GMS Global Sum,PRC DELEGATED CO-COMMISSIONING,GRENOSIDE SURGERY,28694128,"58,732.94 "
Department of Health,NHS Sheffield CCG,31/08/2019,C&M-GMS PCN DES Participation,PRC DELEGATED CO-COMMISSIONING,GRENOSIDE SURGERY,28694128,"1,190.25 "
Department of Health,NHS Sheffield CCG,31/08/2019,C&M-GMS PCO Other,PRC DELEGATED CO-COMMISSIONING,GRENOSIDE SURGERY,28694128,475.50 
Department of Health,NHS Sheffield CCG,31/08/2019,C&M-GMS Prem Notional Rent,PRC DELEGATED CO-COMMISSIONING,GRENOSIDE SURGERY,28694128,"8,110.42 "
Department of Health,NHS Sheffield CCG,31/08/2019,C&M-GMS Prem Rates,PRC DELEGATED CO-COMMISSIONING,GRENOSIDE SURGERY,28694128,"2,075.00 "
Department of Health,NHS Sheffield CCG,31/08/2019,C&M-GMS Prem Water Rates,PRC DELEGATED CO-COMMISSIONING,GRENOSIDE SURGERY,28694128,208.78 
Department of Health,NHS Sheffield CCG,31/08/2019,C&M-GMS Prof Fees Prescribing,PRC DELEGATED CO-COMMISSIONING,GRENOSIDE SURGERY,28694128,86.59 
Department of Health,NHS Sheffield CCG,31/08/2019,C&M-GMS QOF Aspiration,PRC DELEGATED CO-COMMISSIONING,GRENOSIDE SURGERY,28694128,"5,686.85 "
Department of Health,NHS Sheffield CCG,31/08/2019,C&M-GMS Cost of Drugs -Prescribing,LOCAL ENHANCED SERVICES,GREYSTONES MEDICAL CENTRE,28694130,140.14 
Department of Health,NHS Sheffield CCG,31/08/2019,C&M-GMS Global Sum,PRC DELEGATED CO-COMMISSIONING,GREYSTONES MEDICAL CENTRE,28694130,"19,904.44 "
Department of Health,NHS Sheffield CCG,31/08/2019,C&M-GMS MPIG Correction Factor,PRC DELEGATED CO-COMMISSIONING,GREYSTONES MEDICAL CENTRE,28694130,552.23 
Department of Health,NHS Sheffield CCG,31/08/2019,C&M-GMS PCN DES Participation,PRC DELEGATED CO-COMMISSIONING,GREYSTONES MEDICAL CENTRE,28694130,405.94 
Department of Health,NHS Sheffield CCG,31/08/2019,C&M-GMS PCO Other,PRC DELEGATED CO-COMMISSIONING,GREYSTONES MEDICAL CENTRE,28694130,263.10 
Department of Health,NHS Sheffield CCG,31/08/2019,C&M-GMS Prem Notional Rent,PRC DELEGATED CO-COMMISSIONING,GREYSTONES MEDICAL CENTRE,28694130,"2,885.42 "
Department of Health,NHS Sheffield CCG,31/08/2019,C&M-GMS Prem Rates,PRC DELEGATED CO-COMMISSIONING,GREYSTONES MEDICAL CENTRE,28694130,606.00 
Department of Health,NHS Sheffield CCG,31/08/2019,C&M-GMS Prof Fees Prescribing,PRC DELEGATED CO-COMMISSIONING,GREYSTONES MEDICAL CENTRE,28694130,33.67 
Department of Health,NHS Sheffield CCG,31/08/2019,C&M-GMS QOF Aspiration,PRC DELEGATED CO-COMMISSIONING,GREYSTONES MEDICAL CENTRE,28694130,"2,314.72 "
Department of Health,NHS Sheffield CCG,31/08/2019,C&M-PMS Contract Value,PRC DELEGATED CO-COMMISSIONING,HACKENTHORPE MEDICAL CENTRE,28454695,"49,040.88 "
Department of Health,NHS Sheffield CCG,31/08/2019,C&M-PMS DES Learn Dsblty Hlth Chk,PRC DELEGATED CO-COMMISSIONING,HACKENTHORPE MEDICAL CENTRE,28454695,840.00 
Department of Health,NHS Sheffield CCG,31/08/2019,C&M-PMS DES Minor Surgery,PRC DELEGATED CO-COMMISSIONING,HACKENTHORPE MEDICAL CENTRE,28454695,920.00 
Department of Health,NHS Sheffield CCG,31/08/2019,C&M-PMS PCN DES Participation,PRC DELEGATED CO-COMMISSIONING,HACKENTHORPE MEDICAL CENTRE,28454695,926.86 
Department of Health,NHS Sheffield CCG,31/08/2019,C&M-PMS PCO Other,PRC DELEGATED CO-COMMISSIONING,HACKENTHORPE MEDICAL CENTRE,28454695,435.20 
Department of Health,NHS Sheffield CCG,31/08/2019,C&M-PMS Prem Notional Rent,PRC DELEGATED CO-COMMISSIONING,HACKENTHORPE MEDICAL CENTRE,28454695,"5,116.67 "
Department of Health,NHS Sheffield CCG,31/08/2019,C&M-PMS Prem Rates,PRC DELEGATED CO-COMMISSIONING,HACKENTHORPE MEDICAL CENTRE,28454695,"1,363.00 "
Department of Health,NHS Sheffield CCG,31/08/2019,C&M-PMS Prem Water Rates,PRC DELEGATED CO-COMMISSIONING,HACKENTHORPE MEDICAL CENTRE,28454695,296.10 
Department of Health,NHS Sheffield CCG,31/08/2019,C&M-PMS QOF Aspiration,PRC DELEGATED CO-COMMISSIONING,HACKENTHORPE MEDICAL CENTRE,28454695,"6,528.39 "
Department of Health,NHS Sheffield CCG,31/08/2019,C&M-GMS Cost of Drugs -Prescribing,LOCAL ENHANCED SERVICES,HANDSWORTH MEDICAL PRACTICE SHEFFIELD,28694126,"1,596.19 "
Department of Health,NHS Sheffield CCG,31/08/2019,C&M-GMS DES Minor Surgery,PRC DELEGATED CO-COMMISSIONING,HANDSWORTH MEDICAL PRACTICE SHEFFIELD,28694126,400.00 
Department of Health,NHS Sheffield CCG,31/08/2019,C&M-GMS Global Sum,PRC DELEGATED CO-COMMISSIONING,HANDSWORTH MEDICAL PRACTICE SHEFFIELD,28694126,"78,043.04 "
Department of Health,NHS Sheffield CCG,31/08/2019,C&M-GMS PCN DES Participation,PRC DELEGATED CO-COMMISSIONING,HANDSWORTH MEDICAL PRACTICE SHEFFIELD,28694126,"1,567.06 "
Department of Health,NHS Sheffield CCG,31/08/2019,C&M-GMS Prem Notional Rent,PRC DELEGATED CO-COMMISSIONING,HANDSWORTH MEDICAL PRACTICE SHEFFIELD,28694126,"3,321.66 "
Department of Health,NHS Sheffield CCG,31/08/2019,C&M-GMS Prof Fees Prescribing,PRC DELEGATED CO-COMMISSIONING,HANDSWORTH MEDICAL PRACTICE SHEFFIELD,28694126,303.04 
Department of Health,NHS Sheffield CCG,31/08/2019,C&M-GMS QOF Aspiration,PRC DELEGATED CO-COMMISSIONING,HANDSWORTH MEDICAL PRACTICE SHEFFIELD,28694126,"7,811.29 "
Department of Health,NHS Sheffield CCG,31/08/2019,C&M-GMS Cost of Drugs -Prescribing,LOCAL ENHANCED SERVICES,HAROLD STREET MEDICAL CENTRE,28694123,76.81 
Department of Health,NHS Sheffield CCG,31/08/2019,C&M-GMS Global Sum,PRC DELEGATED CO-COMMISSIONING,HAROLD STREET MEDICAL CENTRE,28694123,"20,028.92 "
Department of Health,NHS Sheffield CCG,31/08/2019,C&M-GMS PCN DES Participation,PRC DELEGATED CO-COMMISSIONING,HAROLD STREET MEDICAL CENTRE,28694123,432.48 
Department of Health,NHS Sheffield CCG,31/08/2019,C&M-GMS Prem Notional Rent,PRC DELEGATED CO-COMMISSIONING,HAROLD STREET MEDICAL CENTRE,28694123,"2,337.50 "
Department of Health,NHS Sheffield CCG,31/08/2019,C&M-GMS Prof Fees Prescribing,PRC DELEGATED CO-COMMISSIONING,HAROLD STREET MEDICAL CENTRE,28694123,26.46 
Department of Health,NHS Sheffield CCG,31/08/2019,C&M-GMS QOF Aspiration,PRC DELEGATED CO-COMMISSIONING,HAROLD STREET MEDICAL CENTRE,28694123,"2,228.59 "
Department of Health,NHS Sheffield CCG,31/08/2019,C&M-GMS Cost of Drugs -Prescribing,LOCAL ENHANCED SERVICES,HEALTH CARE SURGERY,28694136,205.56 
Department of Health,NHS Sheffield CCG,31/08/2019,C&M-GMS DES Minor Surgery,PRC DELEGATED CO-COMMISSIONING,HEALTH CARE SURGERY,28694136,360.00 
Department of Health,NHS Sheffield CCG,31/08/2019,C&M-GMS Global Sum,PRC DELEGATED CO-COMMISSIONING,HEALTH CARE SURGERY,28694136,"37,938.75 "
Department of Health,NHS Sheffield CCG,31/08/2019,C&M-GMS MPIG Correction Factor,PRC DELEGATED CO-COMMISSIONING,HEALTH CARE SURGERY,28694136,390.01 
Department of Health,NHS Sheffield CCG,31/08/2019,C&M-GMS PCN DES Participation,PRC DELEGATED CO-COMMISSIONING,HEALTH CARE SURGERY,28694136,796.77 
Department of Health,NHS Sheffield CCG,31/08/2019,C&M-GMS PCO Other,PRC DELEGATED CO-COMMISSIONING,HEALTH CARE SURGERY,28694136,342.10 
Department of Health,NHS Sheffield CCG,31/08/2019,C&M-GMS Prem Notional Rent,PRC DELEGATED CO-COMMISSIONING,HEALTH CARE SURGERY,28694136,"3,862.50 "
Department of Health,NHS Sheffield CCG,31/08/2019,C&M-GMS Prem Rates,PRC DELEGATED CO-COMMISSIONING,HEALTH CARE SURGERY,28694136,645.88 
Department of Health,NHS Sheffield CCG,31/08/2019,C&M-GMS Prof Fees Prescribing,PRC DELEGATED CO-COMMISSIONING,HEALTH CARE SURGERY,28694136,60.14 
Department of Health,NHS Sheffield CCG,31/08/2019,C&M-GMS QOF Aspiration,PRC DELEGATED CO-COMMISSIONING,HEALTH CARE SURGERY,28694136,"4,056.36 "
Department of Health,NHS Sheffield CCG,31/08/2019,C&M-GMS Cost of Drugs -Prescribing,LOCAL ENHANCED SERVICES,HEELEY GREEN SURGERY,28694132,838.48 
Department of Health,NHS Sheffield CCG,31/08/2019,C&M-GMS Global Sum,PRC DELEGATED CO-COMMISSIONING,HEELEY GREEN SURGERY,28694132,"42,332.96 "
Department of Health,NHS Sheffield CCG,31/08/2019,C&M-GMS MPIG Correction Factor,PRC DELEGATED CO-COMMISSIONING,HEELEY GREEN SURGERY,28694132,188.10 
Department of Health,NHS Sheffield CCG,31/08/2019,C&M-GMS PCN DES Participation,PRC DELEGATED CO-COMMISSIONING,HEELEY GREEN SURGERY,28694132,875.00 
Department of Health,NHS Sheffield CCG,31/08/2019,C&M-GMS Prem Notional Rent,PRC DELEGATED CO-COMMISSIONING,HEELEY GREEN SURGERY,28694132,"3,254.17 "
Department of Health,NHS Sheffield CCG,31/08/2019,C&M-GMS Prem Rates,PRC DELEGATED CO-COMMISSIONING,HEELEY GREEN SURGERY,28694132,305.00 
Department of Health,NHS Sheffield CCG,31/08/2019,C&M-GMS Prof Fees Prescribing,PRC DELEGATED CO-COMMISSIONING,HEELEY GREEN SURGERY,28694132,120.27 
Department of Health,NHS Sheffield CCG,31/08/2019,C&M-GMS QOF Aspiration,PRC DELEGATED CO-COMMISSIONING,HEELEY GREEN SURGERY,28694132,"4,709.02 "
Department of Health,NHS Sheffield CCG,31/08/2019,C&M-GMS Cost of Drugs -Prescribing,LOCAL ENHANCED SERVICES,HOLLIES MEDICAL CENTRE,28694134,"1,124.42 "
Department of Health,NHS Sheffield CCG,31/08/2019,C&M-GMS DES Learn Dsblty Hlth Chk,PRC DELEGATED CO-COMMISSIONING,HOLLIES MEDICAL CENTRE,28694134,560.00 
Department of Health,NHS Sheffield CCG,31/08/2019,C&M-GMS DES Minor Surgery,PRC DELEGATED CO-COMMISSIONING,HOLLIES MEDICAL CENTRE,28694134,560.00 
Department of Health,NHS Sheffield CCG,31/08/2019,C&M-GMS Global Sum,PRC DELEGATED CO-COMMISSIONING,HOLLIES MEDICAL CENTRE,28694134,"60,818.24 "
Department of Health,NHS Sheffield CCG,31/08/2019,C&M-GMS MPIG Correction Factor,PRC DELEGATED CO-COMMISSIONING,HOLLIES MEDICAL CENTRE,28694134,726.36 
Department of Health,NHS Sheffield CCG,31/08/2019,C&M-GMS PCN DES Participation,PRC DELEGATED CO-COMMISSIONING,HOLLIES MEDICAL CENTRE,28694134,"1,215.60 "
Department of Health,NHS Sheffield CCG,31/08/2019,C&M-GMS Prem Notional Rent,PRC DELEGATED CO-COMMISSIONING,HOLLIES MEDICAL CENTRE,28694134,"3,229.17 "
Department of Health,NHS Sheffield CCG,31/08/2019,C&M-GMS Prof Fees Prescribing,PRC DELEGATED CO-COMMISSIONING,HOLLIES MEDICAL CENTRE,28694134,137.10 
Department of Health,NHS Sheffield CCG,31/08/2019,C&M-GMS QOF Aspiration,PRC DELEGATED CO-COMMISSIONING,HOLLIES MEDICAL CENTRE,28694134,"6,991.81 "
Department of Health,NHS Sheffield CCG,31/08/2019,Cont Care-Physical Disab (<65),CHC ADULT FULLY FUNDED,HORIZON CARE HOMES LTD,28505844,"(63,262.74)"
Department of Health,NHS Sheffield CCG,31/08/2019,Cont Care-Physical Disab (<65),CHC ADULT FULLY FUNDED,HORIZON CARE HOMES LTD,28505872,"44,589.82 "
Department of Health,NHS Sheffield CCG,31/08/2019,Cont Care-Physical Disab (<65),CHC ADULT FULLY FUNDED,HORIZON CARE HOMES LTD,28505875,"28,099.57 "
Department of Health,NHS Sheffield CCG,31/08/2019,Clinical&Medical-Independent Sector,Mental Health Services - S117 Mental Health,HORIZON CARE HOMES LTD,28766360,"66,924.00 "
Department of Health,NHS Sheffield CCG,31/08/2019,Clinical&Medical-Independent Sector,Mental Health Services - S117 Mental Health,HORIZON CARE HOMES LTD,28766365,"43,619.79 "
Department of Health,NHS Sheffield CCG,31/08/2019,C&M-PMS Contract Value,PRC DELEGATED CO-COMMISSIONING,JAUNTY SPRINGS HEALTH CENTRE,28454697,"30,921.93 "
Department of Health,NHS Sheffield CCG,31/08/2019,C&M-PMS DES Extended Hours Access,PRC DELEGATED CO-COMMISSIONING,JAUNTY SPRINGS HEALTH CENTRE,28454697,"4,210.64 "
Department of Health,NHS Sheffield CCG,31/08/2019,C&M-PMS DES Learn Dsblty Hlth Chk,PRC DELEGATED CO-COMMISSIONING,JAUNTY SPRINGS HEALTH CENTRE,28454697,700.00 
Department of Health,NHS Sheffield CCG,31/08/2019,C&M-PMS DES Minor Surgery,PRC DELEGATED CO-COMMISSIONING,JAUNTY SPRINGS HEALTH CENTRE,28454697,40.00 
Department of Health,NHS Sheffield CCG,31/08/2019,C&M-PMS Out of Hours Opt Outs,PRC DELEGATED CO-COMMISSIONING,JAUNTY SPRINGS HEALTH CENTRE,28454697,0.34 
Department of Health,NHS Sheffield CCG,31/08/2019,C&M-PMS PCN DES Clinical Director,PRC DELEGATED CO-COMMISSIONING,JAUNTY SPRINGS HEALTH CENTRE,28454697,"1,969.31 "
Department of Health,NHS Sheffield CCG,31/08/2019,C&M-PMS PCN DES PCN support,LOCAL ENHANCED SERVICES,JAUNTY SPRINGS HEALTH CENTRE,28454697,"4,310.25 "
Department of Health,NHS Sheffield CCG,31/08/2019,C&M-PMS PCN DES Participation,PRC DELEGATED CO-COMMISSIONING,JAUNTY SPRINGS HEALTH CENTRE,28454697,583.08 
Department of Health,NHS Sheffield CCG,31/08/2019,C&M-PMS PCO Other,PRC DELEGATED CO-COMMISSIONING,JAUNTY SPRINGS HEALTH CENTRE,28454697,263.60 
Department of Health,NHS Sheffield CCG,31/08/2019,C&M-PMS Prem Notional Rent,PRC DELEGATED CO-COMMISSIONING,JAUNTY SPRINGS HEALTH CENTRE,28454697,"3,208.33 "
Department of Health,NHS Sheffield CCG,31/08/2019,C&M-PMS Prem Rates,PRC DELEGATED CO-COMMISSIONING,JAUNTY SPRINGS HEALTH CENTRE,28454697,710.00 
Department of Health,NHS Sheffield CCG,31/08/2019,C&M-PMS QOF Aspiration,PRC DELEGATED CO-COMMISSIONING,JAUNTY SPRINGS HEALTH CENTRE,28454697,"4,020.11 "
Department of Health,NHS Sheffield CCG,31/08/2019,IT(Owned)-Cost-Addns-IT,COST OF IT ADDITIONS,KIER BUSINESS SERVICES LTD,28415043,"39,895.80 "
Department of Health,NHS Sheffield CCG,31/08/2019,C&M-GMS IT Comm Servs -GP Practices,PRIMARY CARE IT,KIER BUSINESS SERVICES LTD,28659183,"100,142.40 "
Department of Health,NHS Sheffield CCG,31/08/2019,FM Computer Contracts,BUSINESS INFORMATICS,KIER BUSINESS SERVICES LTD,28659183,"36,193.20 "
Department of Health,NHS Sheffield CCG,31/08/2019,C&M-GMS LES Translation Fees,INTERPRETING SERVICES,LANGUAGELINE SOLUTIONS,28659089,"52,799.93 "
Department of Health,NHS Sheffield CCG,31/08/2019,C&M-GMS LES Translation Fees,INTERPRETING SERVICES,LANGUAGELINE SOLUTIONS,28659108,"31,269.60 "
Department of Health,NHS Sheffield CCG,31/08/2019,Hcare Srv Rec NHS Trust-Contract Baseline,ACUTE COMMISSIONING,LEEDS TEACHING HOSPITALS NHS TRUST,28505027,"57,500.00 "
Department of Health,NHS Sheffield CCG,31/08/2019,Cont Care-Physical Disab (<65),CHC ADULT FULLY FUNDED,LONGLEY HEALTH CARE LTD,28505535,"92,977.05 "
Department of Health,NHS Sheffield CCG,31/08/2019,Cont Care-Physical Disab (<65),CHC ADULT FULLY FUNDED,LOXLEY HEALTH CARE LTD,28505549,"76,400.38 "
Department of Health,NHS Sheffield CCG,31/08/2019,C&M-PMS Contract Value,PRC DELEGATED CO-COMMISSIONING,MANCHESTER ROAD SURGERY SHEFFIELD,28454701,"33,318.73 "
Department of Health,NHS Sheffield CCG,31/08/2019,C&M-PMS DES Minor Surgery,PRC DELEGATED CO-COMMISSIONING,MANCHESTER ROAD SURGERY SHEFFIELD,28454701,930.00 
Department of Health,NHS Sheffield CCG,31/08/2019,C&M-PMS PCN DES Participation,PRC DELEGATED CO-COMMISSIONING,MANCHESTER ROAD SURGERY SHEFFIELD,28454701,618.32 
Department of Health,NHS Sheffield CCG,31/08/2019,C&M-PMS Prem Cost Rent,PRC DELEGATED CO-COMMISSIONING,MANCHESTER ROAD SURGERY SHEFFIELD,28454701,"3,472.17 "
Department of Health,NHS Sheffield CCG,31/08/2019,C&M-PMS Prem Notional Rent,PRC DELEGATED CO-COMMISSIONING,MANCHESTER ROAD SURGERY SHEFFIELD,28454701,442.92 
Department of Health,NHS Sheffield CCG,31/08/2019,C&M-PMS Prem Rates,PRC DELEGATED CO-COMMISSIONING,MANCHESTER ROAD SURGERY SHEFFIELD,28454701,970.00 
Department of Health,NHS Sheffield CCG,31/08/2019,C&M-PMS QOF Aspiration,PRC DELEGATED CO-COMMISSIONING,MANCHESTER ROAD SURGERY SHEFFIELD,28454701,"3,985.36 "
Department of Health,NHS Sheffield CCG,31/08/2019,C&M-PMS Contract Value,PRC DELEGATED CO-COMMISSIONING,MANOR & PARK GROUP PRACTICE,28461998,"72,704.78 "
Department of Health,NHS Sheffield CCG,31/08/2019,C&M-PMS Out of Hours Opt Outs,PRC DELEGATED CO-COMMISSIONING,MANOR & PARK GROUP PRACTICE,28461998,110.70 
Department of Health,NHS Sheffield CCG,31/08/2019,C&M-PMS PCN DES Participation,PRC DELEGATED CO-COMMISSIONING,MANOR & PARK GROUP PRACTICE,28461998,"1,445.35 "
Department of Health,NHS Sheffield CCG,31/08/2019,C&M-PMS Prem Notional Rent,PRC DELEGATED CO-COMMISSIONING,MANOR & PARK GROUP PRACTICE,28461998,"9,050.00 "
Department of Health,NHS Sheffield CCG,31/08/2019,C&M-PMS Prem Rates,PRC DELEGATED CO-COMMISSIONING,MANOR & PARK GROUP PRACTICE,28461998,"1,747.00 "
Department of Health,NHS Sheffield CCG,31/08/2019,C&M-PMS QOF Aspiration,PRC DELEGATED CO-COMMISSIONING,MANOR & PARK GROUP PRACTICE,28461998,"7,420.75 "
Department of Health,NHS Sheffield CCG,31/08/2019,C&M-GMS Cost of Drugs -Prescribing,LOCAL ENHANCED SERVICES,MATHEWS PRACTICE,28694144,211.78 
Department of Health,NHS Sheffield CCG,31/08/2019,C&M-GMS DES Minor Surgery,PRC DELEGATED CO-COMMISSIONING,MATHEWS PRACTICE,28694144,"3,150.00 "
Department of Health,NHS Sheffield CCG,31/08/2019,C&M-GMS Global Sum,PRC DELEGATED CO-COMMISSIONING,MATHEWS PRACTICE,28694144,"59,605.03 "
Department of Health,NHS Sheffield CCG,31/08/2019,C&M-GMS MPIG Correction Factor,PRC DELEGATED CO-COMMISSIONING,MATHEWS PRACTICE,28694144,299.48 
Department of Health,NHS Sheffield CCG,31/08/2019,C&M-GMS PCN DES Participation,PRC DELEGATED CO-COMMISSIONING,MATHEWS PRACTICE,28694144,"1,281.64 "
Department of Health,NHS Sheffield CCG,31/08/2019,C&M-GMS Prem Notional Rent,PRC DELEGATED CO-COMMISSIONING,MATHEWS PRACTICE,28694144,"8,660.42 "
Department of Health,NHS Sheffield CCG,31/08/2019,C&M-GMS Prem Rates,PRC DELEGATED CO-COMMISSIONING,MATHEWS PRACTICE,28694144,"2,148.00 "
Department of Health,NHS Sheffield CCG,31/08/2019,C&M-GMS Prof Fees Prescribing,PRC DELEGATED CO-COMMISSIONING,MATHEWS PRACTICE,28694144,115.44 
Department of Health,NHS Sheffield CCG,31/08/2019,C&M-GMS QOF Aspiration,PRC DELEGATED CO-COMMISSIONING,MATHEWS PRACTICE,28694144,"7,156.84 "
Department of Health,NHS Sheffield CCG,31/08/2019,C&M-PMS Contract Value,PRC DELEGATED CO-COMMISSIONING,MEADOWHEAD GROUP PRACTICE,28454699,"74,359.20 "
Department of Health,NHS Sheffield CCG,31/08/2019,C&M-PMS DES Minor Surgery,PRC DELEGATED CO-COMMISSIONING,MEADOWHEAD GROUP PRACTICE,28454699,"1,215.00 "
Department of Health,NHS Sheffield CCG,31/08/2019,C&M-PMS Out of Hours Opt Outs,PRC DELEGATED CO-COMMISSIONING,MEADOWHEAD GROUP PRACTICE,28454699,20.35 
Department of Health,NHS Sheffield CCG,31/08/2019,C&M-PMS PCN DES Participation,PRC DELEGATED CO-COMMISSIONING,MEADOWHEAD GROUP PRACTICE,28454699,"1,403.48 "
Department of Health,NHS Sheffield CCG,31/08/2019,C&M-PMS Prem Cost Rent,PRC DELEGATED CO-COMMISSIONING,MEADOWHEAD GROUP PRACTICE,28454699,"3,647.42 "
Department of Health,NHS Sheffield CCG,31/08/2019,C&M-PMS Prem Notional Rent,PRC DELEGATED CO-COMMISSIONING,MEADOWHEAD GROUP PRACTICE,28454699,"3,358.33 "
Department of Health,NHS Sheffield CCG,31/08/2019,C&M-PMS Prem Rates,PRC DELEGATED CO-COMMISSIONING,MEADOWHEAD GROUP PRACTICE,28454699,"1,870.00 "
Department of Health,NHS Sheffield CCG,31/08/2019,C&M-PMS QOF Aspiration,PRC DELEGATED CO-COMMISSIONING,MEADOWHEAD GROUP PRACTICE,28454699,"9,076.52 "
Department of Health,NHS Sheffield CCG,31/08/2019,C&M-GMS Cost of Drugs -Prescribing,LOCAL ENHANCED SERVICES,MEDICAL CENTRE CRYSTAL PEAKS,28694140,"1,157.88 "
Department of Health,NHS Sheffield CCG,31/08/2019,C&M-GMS DES Learn Dsblty Hlth Chk,PRC DELEGATED CO-COMMISSIONING,MEDICAL CENTRE CRYSTAL PEAKS,28694140,700.00 
Department of Health,NHS Sheffield CCG,31/08/2019,C&M-GMS DES Minor Surgery,PRC DELEGATED CO-COMMISSIONING,MEDICAL CENTRE CRYSTAL PEAKS,28694140,"6,720.00 "
Department of Health,NHS Sheffield CCG,31/08/2019,C&M-GMS Global Sum,PRC DELEGATED CO-COMMISSIONING,MEDICAL CENTRE CRYSTAL PEAKS,28694140,"46,652.50 "
Department of Health,NHS Sheffield CCG,31/08/2019,C&M-GMS MPIG Correction Factor,PRC DELEGATED CO-COMMISSIONING,MEDICAL CENTRE CRYSTAL PEAKS,28694140,565.67 
Department of Health,NHS Sheffield CCG,31/08/2019,C&M-GMS PCN DES Participation,PRC DELEGATED CO-COMMISSIONING,MEDICAL CENTRE CRYSTAL PEAKS,28694140,950.00 
Department of Health,NHS Sheffield CCG,31/08/2019,C&M-GMS PCO Other,PRC DELEGATED CO-COMMISSIONING,MEDICAL CENTRE CRYSTAL PEAKS,28694140,426.60 
Department of Health,NHS Sheffield CCG,31/08/2019,C&M-GMS Prem Notional Rent,PRC DELEGATED CO-COMMISSIONING,MEDICAL CENTRE CRYSTAL PEAKS,28694140,270.00 
Department of Health,NHS Sheffield CCG,31/08/2019,C&M-GMS Prem Rates,PRC DELEGATED CO-COMMISSIONING,MEDICAL CENTRE CRYSTAL PEAKS,28694140,"1,056.00 "
Department of Health,NHS Sheffield CCG,31/08/2019,C&M-GMS Prof Fees Prescribing,PRC DELEGATED CO-COMMISSIONING,MEDICAL CENTRE CRYSTAL PEAKS,28694140,317.47 
Department of Health,NHS Sheffield CCG,31/08/2019,C&M-GMS QOF Aspiration,PRC DELEGATED CO-COMMISSIONING,MEDICAL CENTRE CRYSTAL PEAKS,28694140,"6,211.79 "
Department of Health,NHS Sheffield CCG,31/08/2019,C&M-GMS Cost of Drugs -Prescribing,LOCAL ENHANCED SERVICES,MILL ROAD SURGERY SHEFFIELD,28711021,"1,593.63 "
Department of Health,NHS Sheffield CCG,31/08/2019,C&M-GMS DES Learn Dsblty Hlth Chk,PRC DELEGATED CO-COMMISSIONING,MILL ROAD SURGERY SHEFFIELD,28711021,700.00 
Department of Health,NHS Sheffield CCG,31/08/2019,C&M-GMS DES Minor Surgery,PRC DELEGATED CO-COMMISSIONING,MILL ROAD SURGERY SHEFFIELD,28711021,920.00 
Department of Health,NHS Sheffield CCG,31/08/2019,C&M-GMS Global Sum,PRC DELEGATED CO-COMMISSIONING,MILL ROAD SURGERY SHEFFIELD,28711021,"40,804.73 "
Department of Health,NHS Sheffield CCG,31/08/2019,C&M-GMS MPIG Correction Factor,PRC DELEGATED CO-COMMISSIONING,MILL ROAD SURGERY SHEFFIELD,28711021,61.02 
Department of Health,NHS Sheffield CCG,31/08/2019,C&M-GMS PCN DES Participation,PRC DELEGATED CO-COMMISSIONING,MILL ROAD SURGERY SHEFFIELD,28711021,842.44 
Department of Health,NHS Sheffield CCG,31/08/2019,C&M-GMS PCO Other,PRC DELEGATED CO-COMMISSIONING,MILL ROAD SURGERY SHEFFIELD,28711021,352.70 
Department of Health,NHS Sheffield CCG,31/08/2019,C&M-GMS Prem Notional Rent,PRC DELEGATED CO-COMMISSIONING,MILL ROAD SURGERY SHEFFIELD,28711021,"4,593.33 "
Department of Health,NHS Sheffield CCG,31/08/2019,C&M-GMS Prem Rates,PRC DELEGATED CO-COMMISSIONING,MILL ROAD SURGERY SHEFFIELD,28711021,"1,056.00 "
Department of Health,NHS Sheffield CCG,31/08/2019,C&M-GMS Prem Water Rates,PRC DELEGATED CO-COMMISSIONING,MILL ROAD SURGERY SHEFFIELD,28711021,171.27 
Department of Health,NHS Sheffield CCG,31/08/2019,C&M-GMS Prof Fees Prescribing,PRC DELEGATED CO-COMMISSIONING,MILL ROAD SURGERY SHEFFIELD,28711021,88.99 
Department of Health,NHS Sheffield CCG,31/08/2019,C&M-GMS QOF Aspiration,PRC DELEGATED CO-COMMISSIONING,MILL ROAD SURGERY SHEFFIELD,28711021,"5,088.50 "
Department of Health,NHS Sheffield CCG,31/08/2019,Clinical&Medical-Independent Sector,Mental Health Services - S117 Mental Health,MOORVILLE RESIDENTIAL,28505683,"15,062.28 "
Department of Health,NHS Sheffield CCG,31/08/2019,Cont Care-Learning Disab(<65),CHC ADULT FULLY FUNDED,MOORVILLE RESIDENTIAL,28505683,"20,005.23 "
Department of Health,NHS Sheffield CCG,31/08/2019,Cont Care-Learning Disab(<65),CHC ADULT JOINT FUNDED,MOORVILLE RESIDENTIAL,28505683,"1,212.72 "
Department of Health,NHS Sheffield CCG,31/08/2019,Cont Care-Mental Health (<65),CHC ADULT JOINT FUNDED,MOORVILLE RESIDENTIAL,28505683,491.66 
Department of Health,NHS Sheffield CCG,31/08/2019,C&M-PMS Contract Value,PRC DELEGATED CO-COMMISSIONING,MOSBOROUGH HEALTH CENTRE,28454703,"49,681.81 "
Department of Health,NHS Sheffield CCG,31/08/2019,C&M-PMS DES Learn Dsblty Hlth Chk,PRC DELEGATED CO-COMMISSIONING,MOSBOROUGH HEALTH CENTRE,28454703,420.00 
Department of Health,NHS Sheffield CCG,31/08/2019,C&M-PMS DES Minor Surgery,PRC DELEGATED CO-COMMISSIONING,MOSBOROUGH HEALTH CENTRE,28454703,"1,440.00 "
Department of Health,NHS Sheffield CCG,31/08/2019,C&M-PMS PCN DES Participation,PRC DELEGATED CO-COMMISSIONING,MOSBOROUGH HEALTH CENTRE,28454703,927.38 
Department of Health,NHS Sheffield CCG,31/08/2019,C&M-PMS PCO Other,PRC DELEGATED CO-COMMISSIONING,MOSBOROUGH HEALTH CENTRE,28454703,432.20 
Department of Health,NHS Sheffield CCG,31/08/2019,C&M-PMS Prem Notional Rent,PRC DELEGATED CO-COMMISSIONING,MOSBOROUGH HEALTH CENTRE,28454703,"4,091.67 "
Department of Health,NHS Sheffield CCG,31/08/2019,C&M-PMS Prem Rates,PRC DELEGATED CO-COMMISSIONING,MOSBOROUGH HEALTH CENTRE,28454703,"1,105.00 "
Department of Health,NHS Sheffield CCG,31/08/2019,C&M-PMS Prem Water Rates,PRC DELEGATED CO-COMMISSIONING,MOSBOROUGH HEALTH CENTRE,28454703,65.53 
Department of Health,NHS Sheffield CCG,31/08/2019,C&M-PMS QOF Aspiration,PRC DELEGATED CO-COMMISSIONING,MOSBOROUGH HEALTH CENTRE,28454703,"5,736.56 "
Department of Health,NHS Sheffield CCG,31/08/2019,C&M-PMS Contract Value,PRC DELEGATED CO-COMMISSIONING,NETHERGREEN SURGERY,28454705,"63,791.23 "
Department of Health,NHS Sheffield CCG,31/08/2019,C&M-PMS DES Learn Dsblty Hlth Chk,PRC DELEGATED CO-COMMISSIONING,NETHERGREEN SURGERY,28454705,140.00 
Department of Health,NHS Sheffield CCG,31/08/2019,C&M-PMS DES Minor Surgery,PRC DELEGATED CO-COMMISSIONING,NETHERGREEN SURGERY,28454705,"2,270.00 "
Department of Health,NHS Sheffield CCG,31/08/2019,C&M-PMS Out of Hours Opt Outs,PRC DELEGATED CO-COMMISSIONING,NETHERGREEN SURGERY,28454705,4.64 
Department of Health,NHS Sheffield CCG,31/08/2019,C&M-PMS PCN DES Participation,PRC DELEGATED CO-COMMISSIONING,NETHERGREEN SURGERY,28454705,"1,208.31 "
Department of Health,NHS Sheffield CCG,31/08/2019,C&M-PMS Prem Cost Rent,PRC DELEGATED CO-COMMISSIONING,NETHERGREEN SURGERY,28454705,"5,057.33 "
Department of Health,NHS Sheffield CCG,31/08/2019,C&M-PMS Prem Rates,PRC DELEGATED CO-COMMISSIONING,NETHERGREEN SURGERY,28454705,"1,264.00 "
Department of Health,NHS Sheffield CCG,31/08/2019,C&M-PMS Prem Water Rates,PRC DELEGATED CO-COMMISSIONING,NETHERGREEN SURGERY,28454705,213.79 
Department of Health,NHS Sheffield CCG,31/08/2019,C&M-PMS QOF Aspiration,PRC DELEGATED CO-COMMISSIONING,NETHERGREEN SURGERY,28454705,"6,406.79 "
Department of Health,NHS Sheffield CCG,31/08/2019,Payrol Deductions ( Non Statutory) <1Yr,NON STATUTORY PAYROL DEDUCTIONS,NHS ENGLAND,28393119,"81,802.30 "
Department of Health,NHS Sheffield CCG,31/08/2019,Cont Care-CCG-Prior Year Payments,CHC ADULT FULLY FUNDED,NHS NORTH EAST ESSEX CCG,28501924,"29,824.11 "
Department of Health,NHS Sheffield CCG,31/08/2019,Cont Care-CCG-Prior Year Payments,CHC ADULT FULLY FUNDED,NHS NORTH EAST ESSEX CCG,28501953,"39,729.18 "
Department of Health,NHS Sheffield CCG,31/08/2019,Cont Care-CCG-Prior Year Payments,CHC ADULT FULLY FUNDED,NHS NORTH EAST ESSEX CCG,28505101,"(29,824.11)"
Department of Health,NHS Sheffield CCG,31/08/2019,Cont Care-CCG-Prior Year Payments,CHC ADULT FULLY FUNDED,NHS NORTH EAST ESSEX CCG,28505138,"(39,729.18)"
Department of Health,NHS Sheffield CCG,31/08/2019,Cont Care-CCG-Prior Year Payments,CHC ADULT FULLY FUNDED,NHS NORTH EAST ESSEX CCG,28582609,"39,946.87 "
Department of Health,NHS Sheffield CCG,31/08/2019,Cont Care-CCG-Prior Year Payments,CHC ADULT FULLY FUNDED,NHS NORTH EAST ESSEX CCG,28582922,"(39,946.87)"
Department of Health,NHS Sheffield CCG,31/08/2019,Charges from CSU,BUSINESS INFORMATICS,NHS NORTH OF ENGLAND CSU,28644836,"27,376.00 "
Department of Health,NHS Sheffield CCG,31/08/2019,C&M-GMS Cost of Drugs -Prescribing,LOCAL ENHANCED SERVICES,NORFOLK PARK HEALTH CENTRE,28694151,255.03 
Department of Health,NHS Sheffield CCG,31/08/2019,C&M-GMS DES Learn Dsblty Hlth Chk,PRC DELEGATED CO-COMMISSIONING,NORFOLK PARK HEALTH CENTRE,28694151,140.00 
Department of Health,NHS Sheffield CCG,31/08/2019,C&M-GMS DES Minor Surgery,PRC DELEGATED CO-COMMISSIONING,NORFOLK PARK HEALTH CENTRE,28694151,930.00 
Department of Health,NHS Sheffield CCG,31/08/2019,C&M-GMS Global Sum,PRC DELEGATED CO-COMMISSIONING,NORFOLK PARK HEALTH CENTRE,28694151,"39,049.58 "
Department of Health,NHS Sheffield CCG,31/08/2019,C&M-GMS MPIG Correction Factor,PRC DELEGATED CO-COMMISSIONING,NORFOLK PARK HEALTH CENTRE,28694151,462.30 
Department of Health,NHS Sheffield CCG,31/08/2019,C&M-GMS PCN DES Participation,PRC DELEGATED CO-COMMISSIONING,NORFOLK PARK HEALTH CENTRE,28694151,763.41 
Department of Health,NHS Sheffield CCG,31/08/2019,C&M-GMS Prem Healthcentre Rent,PRC DELEGATED CO-COMMISSIONING,NORFOLK PARK HEALTH CENTRE,28694151,"24,820.01 "
Department of Health,NHS Sheffield CCG,31/08/2019,C&M-GMS Prof Fees Prescribing,PRC DELEGATED CO-COMMISSIONING,NORFOLK PARK HEALTH CENTRE,28694151,57.73 
Department of Health,NHS Sheffield CCG,31/08/2019,C&M-GMS QOF Aspiration,PRC DELEGATED CO-COMMISSIONING,NORFOLK PARK HEALTH CENTRE,28694151,"3,941.29 "
Department of Health,NHS Sheffield CCG,31/08/2019,C&M-GMS Cost of Drugs -Prescribing,LOCAL ENHANCED SERVICES,NORWOOD MEDICAL CENTRE SHEFFIELD,28694154,467.96 
Department of Health,NHS Sheffield CCG,31/08/2019,C&M-GMS DES Learn Dsblty Hlth Chk,PRC DELEGATED CO-COMMISSIONING,NORWOOD MEDICAL CENTRE SHEFFIELD,28694154,980.00 
Department of Health,NHS Sheffield CCG,31/08/2019,C&M-GMS DES Minor Surgery,PRC DELEGATED CO-COMMISSIONING,NORWOOD MEDICAL CENTRE SHEFFIELD,28694154,"2,910.00 "
Department of Health,NHS Sheffield CCG,31/08/2019,C&M-GMS Global Sum,PRC DELEGATED CO-COMMISSIONING,NORWOOD MEDICAL CENTRE SHEFFIELD,28694154,"65,351.94 "
Department of Health,NHS Sheffield CCG,31/08/2019,C&M-GMS PCN DES Participation,PRC DELEGATED CO-COMMISSIONING,NORWOOD MEDICAL CENTRE SHEFFIELD,28694154,"1,337.61 "
Department of Health,NHS Sheffield CCG,31/08/2019,C&M-GMS PCO Other,PRC DELEGATED CO-COMMISSIONING,NORWOOD MEDICAL CENTRE SHEFFIELD,28694154,510.00 
Department of Health,NHS Sheffield CCG,31/08/2019,C&M-GMS Prem Notional Rent,PRC DELEGATED CO-COMMISSIONING,NORWOOD MEDICAL CENTRE SHEFFIELD,28694154,"5,187.50 "
Department of Health,NHS Sheffield CCG,31/08/2019,C&M-GMS Prem Rates,PRC DELEGATED CO-COMMISSIONING,NORWOOD MEDICAL CENTRE SHEFFIELD,28694154,"1,279.00 "
Department of Health,NHS Sheffield CCG,31/08/2019,C&M-GMS Prem Water Rates,PRC DELEGATED CO-COMMISSIONING,NORWOOD MEDICAL CENTRE SHEFFIELD,28694154,230.90 
Department of Health,NHS Sheffield CCG,31/08/2019,C&M-GMS Prof Fees Prescribing,PRC DELEGATED CO-COMMISSIONING,NORWOOD MEDICAL CENTRE SHEFFIELD,28694154,129.88 
Department of Health,NHS Sheffield CCG,31/08/2019,C&M-GMS QOF Aspiration,PRC DELEGATED CO-COMMISSIONING,NORWOOD MEDICAL CENTRE SHEFFIELD,28694154,"8,171.17 "
Department of Health,NHS Sheffield CCG,31/08/2019,Clinical&Medical-Independent Sector,ACUTE COMMISSIONING,ONEHEALTH GROUP,28763255,"71,286.25 "
Department of Health,NHS Sheffield CCG,31/08/2019,C&M-GMS Cost of Drugs -Dispensing,LOCAL ENHANCED SERVICES,OUGHTIBRIDGE SURGERY,28694158,"28,802.63 "
Department of Health,NHS Sheffield CCG,31/08/2019,C&M-GMS DES Learn Dsblty Hlth Chk,PRC DELEGATED CO-COMMISSIONING,OUGHTIBRIDGE SURGERY,28694158,140.00 
Department of Health,NHS Sheffield CCG,31/08/2019,C&M-GMS DES Minor Surgery,PRC DELEGATED CO-COMMISSIONING,OUGHTIBRIDGE SURGERY,28694158,760.00 
Department of Health,NHS Sheffield CCG,31/08/2019,C&M-GMS Global Sum,PRC DELEGATED CO-COMMISSIONING,OUGHTIBRIDGE SURGERY,28694158,"43,122.00 "
Department of Health,NHS Sheffield CCG,31/08/2019,C&M-GMS PCN DES Participation,PRC DELEGATED CO-COMMISSIONING,OUGHTIBRIDGE SURGERY,28694158,889.02 
Department of Health,NHS Sheffield CCG,31/08/2019,C&M-GMS Prem Notional Rent,PRC DELEGATED CO-COMMISSIONING,OUGHTIBRIDGE SURGERY,28694158,"3,957.33 "
Department of Health,NHS Sheffield CCG,31/08/2019,C&M-GMS Prem Rates,PRC DELEGATED CO-COMMISSIONING,OUGHTIBRIDGE SURGERY,28694158,895.00 
Department of Health,NHS Sheffield CCG,31/08/2019,C&M-GMS Prof Fees Dispensing,PRC DELEGATED CO-COMMISSIONING,OUGHTIBRIDGE SURGERY,28694158,"4,426.64 "
Department of Health,NHS Sheffield CCG,31/08/2019,C&M-GMS PrscrptnChrgsColl&RmttdbyGP,LOCAL ENHANCED SERVICES,OUGHTIBRIDGE SURGERY,28694158,738.00 
Department of Health,NHS Sheffield CCG,31/08/2019,C&M-GMS QOF Aspiration,PRC DELEGATED CO-COMMISSIONING,OUGHTIBRIDGE SURGERY,28694158,"4,261.60 "
Department of Health,NHS Sheffield CCG,31/08/2019,C&M-PMS Contract Value,PRC DELEGATED CO-COMMISSIONING,OWLTHORPE MEDICAL CENTRE,28454707,"33,242.63 "
Department of Health,NHS Sheffield CCG,31/08/2019,C&M-PMS DES Minor Surgery,PRC DELEGATED CO-COMMISSIONING,OWLTHORPE MEDICAL CENTRE,28454707,840.00 
Department of Health,NHS Sheffield CCG,31/08/2019,C&M-PMS Out of Hours Opt Outs,PRC DELEGATED CO-COMMISSIONING,OWLTHORPE MEDICAL CENTRE,28454707,16.69 
Department of Health,NHS Sheffield CCG,31/08/2019,C&M-PMS PCN DES Participation,PRC DELEGATED CO-COMMISSIONING,OWLTHORPE MEDICAL CENTRE,28454707,639.06 
Department of Health,NHS Sheffield CCG,31/08/2019,C&M-PMS PCO Locum Adop/Pat/Mat,PRC DELEGATED CO-COMMISSIONING,OWLTHORPE MEDICAL CENTRE,28454707,"9,292.20 "
Department of Health,NHS Sheffield CCG,31/08/2019,C&M-PMS Prem Actual Rent,PRC DELEGATED CO-COMMISSIONING,OWLTHORPE MEDICAL CENTRE,28454707,"7,539.58 "
Department of Health,NHS Sheffield CCG,31/08/2019,C&M-PMS Prem Rates,PRC DELEGATED CO-COMMISSIONING,OWLTHORPE MEDICAL CENTRE,28454707,"1,316.00 "
Department of Health,NHS Sheffield CCG,31/08/2019,C&M-PMS Prem Water Rates,PRC DELEGATED CO-COMMISSIONING,OWLTHORPE MEDICAL CENTRE,28454707,83.40 
Department of Health,NHS Sheffield CCG,31/08/2019,C&M-PMS QOF Aspiration,PRC DELEGATED CO-COMMISSIONING,OWLTHORPE MEDICAL CENTRE,28454707,"3,873.48 "
Department of Health,NHS Sheffield CCG,31/08/2019,C&M-PMS Contract Value,PRC DELEGATED CO-COMMISSIONING,PAGE HALL MEDICAL CENTRE,28454709,"57,002.30 "
Department of Health,NHS Sheffield CCG,31/08/2019,C&M-PMS DES Learn Dsblty Hlth Chk,PRC DELEGATED CO-COMMISSIONING,PAGE HALL MEDICAL CENTRE,28454709,"1,680.00 "
Department of Health,NHS Sheffield CCG,31/08/2019,C&M-PMS DES Minor Surgery,PRC DELEGATED CO-COMMISSIONING,PAGE HALL MEDICAL CENTRE,28454709,400.00 
Department of Health,NHS Sheffield CCG,31/08/2019,C&M-PMS Out of Hours Opt Outs,PRC DELEGATED CO-COMMISSIONING,PAGE HALL MEDICAL CENTRE,28454709,30.93 
Department of Health,NHS Sheffield CCG,31/08/2019,C&M-PMS PCN DES Participation,PRC DELEGATED CO-COMMISSIONING,PAGE HALL MEDICAL CENTRE,28454709,"1,083.01 "
Department of Health,NHS Sheffield CCG,31/08/2019,C&M-PMS Prem Notional Rent,PRC DELEGATED CO-COMMISSIONING,PAGE HALL MEDICAL CENTRE,28454709,"4,833.33 "
Department of Health,NHS Sheffield CCG,31/08/2019,C&M-PMS Prem Rates,PRC DELEGATED CO-COMMISSIONING,PAGE HALL MEDICAL CENTRE,28454709,"1,077.00 "
Department of Health,NHS Sheffield CCG,31/08/2019,C&M-PMS QOF Aspiration,PRC DELEGATED CO-COMMISSIONING,PAGE HALL MEDICAL CENTRE,28454709,"4,558.05 "
Department of Health,NHS Sheffield CCG,31/08/2019,C&M-PMS Contract Value,PRC DELEGATED CO-COMMISSIONING,PORTER BROOK MEDICAL CENTRE,28454710,"(11,610.59)"
Department of Health,NHS Sheffield CCG,31/08/2019,C&M-PMS GP Statutory Levy,PRC DELEGATED CO-COMMISSIONING,PORTER BROOK MEDICAL CENTRE,28454710,(989.17)
Department of Health,NHS Sheffield CCG,31/08/2019,C&M-PMS Out of Hours Opt Outs,PRC DELEGATED CO-COMMISSIONING,PORTER BROOK MEDICAL CENTRE,28454710,"(7,778.42)"
Department of Health,NHS Sheffield CCG,31/08/2019,C&M-PMS Contract Value,PRC DELEGATED CO-COMMISSIONING,PORTER BROOK MEDICAL CENTRE,28454711,"166,801.76 "
Department of Health,NHS Sheffield CCG,31/08/2019,C&M-PMS Out of Hours Opt Outs,PRC DELEGATED CO-COMMISSIONING,PORTER BROOK MEDICAL CENTRE,28454711,541.69 
Department of Health,NHS Sheffield CCG,31/08/2019,C&M-PMS PCN DES Participation,PRC DELEGATED CO-COMMISSIONING,PORTER BROOK MEDICAL CENTRE,28454711,"3,163.47 "
Department of Health,NHS Sheffield CCG,31/08/2019,C&M-PMS PCO Other,PRC DELEGATED CO-COMMISSIONING,PORTER BROOK MEDICAL CENTRE,28454711,"8,651.50 "
Department of Health,NHS Sheffield CCG,31/08/2019,C&M-PMS Prem Actual Rent,PRC DELEGATED CO-COMMISSIONING,PORTER BROOK MEDICAL CENTRE,28454711,"1,333.33 "
Department of Health,NHS Sheffield CCG,31/08/2019,C&M-PMS Prem Notional Rent,PRC DELEGATED CO-COMMISSIONING,PORTER BROOK MEDICAL CENTRE,28454711,"9,666.67 "
Department of Health,NHS Sheffield CCG,31/08/2019,C&M-PMS Prem Rates,PRC DELEGATED CO-COMMISSIONING,PORTER BROOK MEDICAL CENTRE,28454711,"2,271.00 "
Department of Health,NHS Sheffield CCG,31/08/2019,C&M-PMS QOF Aspiration,PRC DELEGATED CO-COMMISSIONING,PORTER BROOK MEDICAL CENTRE,28454711,"8,838.31 "
Department of Health,NHS Sheffield CCG,31/08/2019,Clinical&Medical-Commercial Sector,PATIENT TRANSPORT,PREMIER CARE DIRECT LTD,28763041,"112,480.55 "
Department of Health,NHS Sheffield CCG,31/08/2019,C&M-GMS LES Basket of Procedures,LOCAL ENHANCED SERVICES,PRIMARY CARE SHEFFIELD LTD,28659433,"52,308.33 "
Department of Health,NHS Sheffield CCG,31/08/2019,C&M-APMS DES Extended Hours Access,GP FORWARD VIEW,PRIMARY CARE SHEFFIELD LTD,28659519,"295,941.67 "
Department of Health,NHS Sheffield CCG,31/08/2019,C&M-OES Childrens Schemes,LOCAL ENHANCED SERVICES,PRIMARY EYECARE SERVICES LTD,28659908,"1,400.00 "
Department of Health,NHS Sheffield CCG,31/08/2019,C&M-OES Glaucoma,LOCAL ENHANCED SERVICES,PRIMARY EYECARE SERVICES LTD,28659908,885.00 
Department of Health,NHS Sheffield CCG,31/08/2019,C&M-OES Intra-ocular Ocular Hypertn,LOCAL ENHANCED SERVICES,PRIMARY EYECARE SERVICES LTD,28659908,280.00 
Department of Health,NHS Sheffield CCG,31/08/2019,C&M-OES PEARS,LOCAL ENHANCED SERVICES,PRIMARY EYECARE SERVICES LTD,28659908,"27,091.00 "
Department of Health,NHS Sheffield CCG,31/08/2019,C&M-PMS Contract Value,PRC DELEGATED CO-COMMISSIONING,RICHMOND MEDICAL CENTRE,28454713,"67,475.60 "
Department of Health,NHS Sheffield CCG,31/08/2019,C&M-PMS DES Learn Dsblty Hlth Chk,PRC DELEGATED CO-COMMISSIONING,RICHMOND MEDICAL CENTRE,28454713,"1,260.00 "
Department of Health,NHS Sheffield CCG,31/08/2019,C&M-PMS DES Minor Surgery,PRC DELEGATED CO-COMMISSIONING,RICHMOND MEDICAL CENTRE,28454713,"2,355.00 "
Department of Health,NHS Sheffield CCG,31/08/2019,C&M-PMS PCN DES Participation,PRC DELEGATED CO-COMMISSIONING,RICHMOND MEDICAL CENTRE,28454713,"1,271.70 "
Department of Health,NHS Sheffield CCG,31/08/2019,C&M-PMS PCO Other,PRC DELEGATED CO-COMMISSIONING,RICHMOND MEDICAL CENTRE,28454713,561.50 
Department of Health,NHS Sheffield CCG,31/08/2019,C&M-PMS Prem Notional Rent,PRC DELEGATED CO-COMMISSIONING,RICHMOND MEDICAL CENTRE,28454713,"4,731.00 "
Department of Health,NHS Sheffield CCG,31/08/2019,C&M-PMS Prem Rates,PRC DELEGATED CO-COMMISSIONING,RICHMOND MEDICAL CENTRE,28454713,"1,259.00 "
Department of Health,NHS Sheffield CCG,31/08/2019,C&M-PMS QOF Aspiration,PRC DELEGATED CO-COMMISSIONING,RICHMOND MEDICAL CENTRE,28454713,"8,208.20 "
Department of Health,NHS Sheffield CCG,31/08/2019,Cont Care-Physical Disab (<65),CHC ADULT FULLY FUNDED,ROSEBERRY CARE CENTRES,28505488,"55,870.73 "
Department of Health,NHS Sheffield CCG,31/08/2019,Cont Care-Physical Disab (<65),CHC ADULT FULLY FUNDED,ROSEBERRY CARE CENTRES,28505556,"25,899.86 "
Department of Health,NHS Sheffield CCG,31/08/2019,Cont Care-Funded Nursing Care Allow,FUNDED NURSING CARE,ROSEBERRY CARE CENTRES,28526486,"28,956.21 "
Department of Health,NHS Sheffield CCG,31/08/2019,Hcare Srv Rec Fdtn Trust-Contract Baseline,ACUTE COMMISSIONING,ROTHERHAM NHS FOUNDATION TRUST,28439532,"466,729.00 "
Department of Health,NHS Sheffield CCG,31/08/2019,C&M-PMS Contract Value,PRC DELEGATED CO-COMMISSIONING,RUSTLINGS ROAD MEDICAL CENTRE,28454717,"28,149.85 "
Department of Health,NHS Sheffield CCG,31/08/2019,C&M-PMS DES Learn Dsblty Hlth Chk,PRC DELEGATED CO-COMMISSIONING,RUSTLINGS ROAD MEDICAL CENTRE,28454717,140.00 
Department of Health,NHS Sheffield CCG,31/08/2019,C&M-PMS PCN DES Participation,PRC DELEGATED CO-COMMISSIONING,RUSTLINGS ROAD MEDICAL CENTRE,28454717,527.62 
Department of Health,NHS Sheffield CCG,31/08/2019,C&M-PMS PCO Other,PRC DELEGATED CO-COMMISSIONING,RUSTLINGS ROAD MEDICAL CENTRE,28454717,313.80 
Department of Health,NHS Sheffield CCG,31/08/2019,C&M-PMS Prem Notional Rent,PRC DELEGATED CO-COMMISSIONING,RUSTLINGS ROAD MEDICAL CENTRE,28454717,"1,312.50 "
Department of Health,NHS Sheffield CCG,31/08/2019,C&M-PMS QOF Aspiration,PRC DELEGATED CO-COMMISSIONING,RUSTLINGS ROAD MEDICAL CENTRE,28454717,"2,653.37 "
Department of Health,NHS Sheffield CCG,31/08/2019,Cont Care-Physical Disab (<65),CHC ADULT FULLY FUNDED,SEVEN HILLS NURSING HOME,28505867,"25,404.00 "
Department of Health,NHS Sheffield CCG,31/08/2019,C&M-GMS Cost of Drugs -Prescribing,LOCAL ENHANCED SERVICES,SHARROW LANE MEDICAL CENTRE,28694162,"1,542.02 "
Department of Health,NHS Sheffield CCG,31/08/2019,C&M-GMS Global Sum,PRC DELEGATED CO-COMMISSIONING,SHARROW LANE MEDICAL CENTRE,28694162,"23,533.97 "
Department of Health,NHS Sheffield CCG,31/08/2019,C&M-GMS MPIG Correction Factor,PRC DELEGATED CO-COMMISSIONING,SHARROW LANE MEDICAL CENTRE,28694162,980.16 
Department of Health,NHS Sheffield CCG,31/08/2019,C&M-GMS PCN DES Participation,PRC DELEGATED CO-COMMISSIONING,SHARROW LANE MEDICAL CENTRE,28694162,481.39 
Department of Health,NHS Sheffield CCG,31/08/2019,C&M-GMS PCO Other,PRC DELEGATED CO-COMMISSIONING,SHARROW LANE MEDICAL CENTRE,28694162,274.00 
Department of Health,NHS Sheffield CCG,31/08/2019,C&M-GMS Prem Notional Rent,PRC DELEGATED CO-COMMISSIONING,SHARROW LANE MEDICAL CENTRE,28694162,"2,741.67 "
Department of Health,NHS Sheffield CCG,31/08/2019,C&M-GMS Prem Rates,PRC DELEGATED CO-COMMISSIONING,SHARROW LANE MEDICAL CENTRE,28694162,581.00 
Department of Health,NHS Sheffield CCG,31/08/2019,C&M-GMS Prem Water Rates,PRC DELEGATED CO-COMMISSIONING,SHARROW LANE MEDICAL CENTRE,28694162,104.43 
Department of Health,NHS Sheffield CCG,31/08/2019,C&M-GMS Prof Fees Prescribing,PRC DELEGATED CO-COMMISSIONING,SHARROW LANE MEDICAL CENTRE,28694162,194.81 
Department of Health,NHS Sheffield CCG,31/08/2019,C&M-GMS QOF Aspiration,PRC DELEGATED CO-COMMISSIONING,SHARROW LANE MEDICAL CENTRE,28694162,"2,666.85 "
Department of Health,NHS Sheffield CCG,31/08/2019,Hcare Srv Rec Fdtn Trust-CQUIN,ACUTE CHILDRENS SERVICES,SHEFFIELD CHILDRENS NHS FOUNDATION TRUST,28582681,"2,625.00 "
Department of Health,NHS Sheffield CCG,31/08/2019,Hcare Srv Rec Fdtn Trust-Contract Baseline,CHILD AND ADOLESCENT MENTAL HEALTH,SHEFFIELD CHILDRENS NHS FOUNDATION TRUST,28582681,"207,375.00 "
Department of Health,NHS Sheffield CCG,31/08/2019,Hcare Srv Rec Fdtn Trust-Contract Baseline,ACUTE CHILDRENS SERVICES,SHEFFIELD CHILDRENS NHS FOUNDATION TRUST,28659397,"3,387,974.00 "
Department of Health,NHS Sheffield CCG,31/08/2019,Hcare Srv Rec Fdtn Trust-Contract Baseline,ACUTE CHILDRENS SERVICES,SHEFFIELD CHILDRENS NHS FOUNDATION TRUST,28763233,"68,692.00 "
Department of Health,NHS Sheffield CCG,31/08/2019,Clinical&Medical-Othe Public Sector,COMMUNITY SERVICES,SHEFFIELD CITY COUNCIL,28505976,"150,417.00 "
Department of Health,NHS Sheffield CCG,31/08/2019,Clinical&Medical-Othe Public Sector,MENTAL HEALTH SERVICES - COLLABORATIVE COMMISSIONING,SHEFFIELD CITY COUNCIL,28505976,"83,669.00 "
Department of Health,NHS Sheffield CCG,31/08/2019,Clinical&Medical-Othe Public Sector,REABLEMENT,SHEFFIELD CITY COUNCIL,28505976,"21,831.00 "
Department of Health,NHS Sheffield CCG,31/08/2019,Clinical&Medical-Othe Public Sector,SAFEGUARDING,SHEFFIELD CITY COUNCIL,28505976,"12,235.00 "
Department of Health,NHS Sheffield CCG,31/08/2019,Cont Care-Physical Disab (65+),CHC ADULT FULLY FUNDED,SHEFFIELD CITY COUNCIL,28505976,"14,165.42 "
Department of Health,NHS Sheffield CCG,31/08/2019,Soc Care-Joint H&C Teams/Working,INTERMEDIATE CARE,SHEFFIELD CITY COUNCIL,28505976,"151,448.00 "
Department of Health,NHS Sheffield CCG,31/08/2019,Soc Care-Other Soc Care,COMMISSIONING - NON ACUTE,SHEFFIELD CITY COUNCIL,28505976,"1,467,750.00 "
Department of Health,NHS Sheffield CCG,31/08/2019,Soc Care-Support Prim Care,COMMUNITY SERVICES,SHEFFIELD CITY COUNCIL,28505976,"59,500.00 "
Department of Health,NHS Sheffield CCG,31/08/2019,Cont Care- Children,CHC CHILDREN,SHEFFIELD CITY COUNCIL,28725367,"41,660.57 "
Department of Health,NHS Sheffield CCG,31/08/2019,Cont Care- Prior Year Payments,Children's Continuing Care,SHEFFIELD CITY COUNCIL,28725373,"41,939.08 "
Department of Health,NHS Sheffield CCG,31/08/2019,Cont Care- Prior Year Payments,CHC ADULT FULLY FUNDED,SHEFFIELD CITY COUNCIL,28725456,"72,863.56 "
Department of Health,NHS Sheffield CCG,31/08/2019,Cont Care-Physical Disab (65+),CHC ADULT FULLY FUNDED,SHEFFIELD CITY COUNCIL,28725540,"876,641.23 "
Department of Health,NHS Sheffield CCG,31/08/2019,Hcare Srv Rec Fdtn Trust-Contract Baseline,MENTAL HEALTH CONTRACTS,SHEFFIELD HEALTH & SOCIAL CARE NHS FOUNDATION TRUST,28439720,"440,000.00 "
Department of Health,NHS Sheffield CCG,31/08/2019,Cont Care-NHSFT-Adult 100% Funded,CHC ADULT FULLY FUNDED,SHEFFIELD HEALTH & SOCIAL CARE NHS FOUNDATION TRUST,28505052,"222,775.58 "
Department of Health,NHS Sheffield CCG,31/08/2019,Cont Care-NHSFT-Adult 100% Funded,CHC ADULT FULLY FUNDED,SHEFFIELD HEALTH & SOCIAL CARE NHS FOUNDATION TRUST,28505066,"222,775.58 "
Department of Health,NHS Sheffield CCG,31/08/2019,Cont Care-NHSFT-Adult 100% Funded,CHC ADULT FULLY FUNDED,SHEFFIELD HEALTH & SOCIAL CARE NHS FOUNDATION TRUST,28505068,"222,775.58 "
Department of Health,NHS Sheffield CCG,31/08/2019,Cont Care-NHSFT-Adult 100% Funded,CHC ADULT FULLY FUNDED,SHEFFIELD HEALTH & SOCIAL CARE NHS FOUNDATION TRUST,28505224,"222,775.58 "
Department of Health,NHS Sheffield CCG,31/08/2019,Hcare Srv Rec Fdtn Trust-Contract Baseline,MENTAL HEALTH CONTRACTS,SHEFFIELD HEALTH & SOCIAL CARE NHS FOUNDATION TRUST,28763034,"6,833,545.75 "
Department of Health,NHS Sheffield CCG,31/08/2019,Hcare Srv Rec Fdtn Trust-Contract Baseline,ACUTE COMMISSIONING,SHEFFIELD TEACHING HOSPITALS NHS FOUNDATION TRUST,28659484,"30,408,062.00 "
Department of Health,NHS Sheffield CCG,31/08/2019,Hcare Srv Rec Fdtn Trust-Contract Baseline,ACUTE COMMISSIONING,SHEFFIELD TEACHING HOSPITALS NHS FOUNDATION TRUST,28659487,"192,716.00 "
Department of Health,NHS Sheffield CCG,31/08/2019,Hcare Srv Rec Fdtn Trust-Contract Baseline,ACUTE COMMISSIONING,SHEFFIELD TEACHING HOSPITALS NHS FOUNDATION TRUST,28659491,"3,898,717.00 "
Department of Health,NHS Sheffield CCG,31/08/2019,Hcare Srv Rec Fdtn Trust-Contract Baseline,ACUTE COMMISSIONING,SHEFFIELD TEACHING HOSPITALS NHS FOUNDATION TRUST,28659494,"1,367,220.00 "
Department of Health,NHS Sheffield CCG,31/08/2019,Miscellaneous Expenditure (L9),BEREAVEMENT SERVICE,SHEFFIELD TEACHING HOSPITALS NHS FOUNDATION TRUST,28763069,723.54 
Department of Health,NHS Sheffield CCG,31/08/2019,Miscellaneous Expenditure (L9),REABLEMENT,SHEFFIELD TEACHING HOSPITALS NHS FOUNDATION TRUST,28763069,66.66 
Department of Health,NHS Sheffield CCG,31/08/2019,Oth Travel Costs-Car Mileage,BEREAVEMENT SERVICE,SHEFFIELD TEACHING HOSPITALS NHS FOUNDATION TRUST,28763069,209.30 
Department of Health,NHS Sheffield CCG,31/08/2019,Oth Travel Costs-Car Mileage,REABLEMENT,SHEFFIELD TEACHING HOSPITALS NHS FOUNDATION TRUST,28763069,178.11 
Department of Health,NHS Sheffield CCG,31/08/2019,Seconded-Basic Sal-Staff fm oth org,BEREAVEMENT SERVICE,SHEFFIELD TEACHING HOSPITALS NHS FOUNDATION TRUST,28763069,"144,707.86 "
Department of Health,NHS Sheffield CCG,31/08/2019,Seconded-Basic Sal-Staff fm oth org,REABLEMENT,SHEFFIELD TEACHING HOSPITALS NHS FOUNDATION TRUST,28763069,"13,331.68 "
Department of Health,NHS Sheffield CCG,31/08/2019,Seconded-Employer's NHI Costs,BEREAVEMENT SERVICE,SHEFFIELD TEACHING HOSPITALS NHS FOUNDATION TRUST,28763069,"18,448.26 "
Department of Health,NHS Sheffield CCG,31/08/2019,Seconded-Employer's NHI Costs,REABLEMENT,SHEFFIELD TEACHING HOSPITALS NHS FOUNDATION TRUST,28763069,"1,447.45 "
Department of Health,NHS Sheffield CCG,31/08/2019,C&M-GMS Cost of Drugs -Prescribing,LOCAL ENHANCED SERVICES,SHIREGREEN MEDICAL CENTRE,28694170,"1,628.24 "
Department of Health,NHS Sheffield CCG,31/08/2019,C&M-GMS DES Minor Surgery,PRC DELEGATED CO-COMMISSIONING,SHIREGREEN MEDICAL CENTRE,28694170,80.00 
Department of Health,NHS Sheffield CCG,31/08/2019,C&M-GMS Global Sum,PRC DELEGATED CO-COMMISSIONING,SHIREGREEN MEDICAL CENTRE,28694170,"58,653.83 "
Department of Health,NHS Sheffield CCG,31/08/2019,C&M-GMS MPIG Correction Factor,PRC DELEGATED CO-COMMISSIONING,SHIREGREEN MEDICAL CENTRE,28694170,226.84 
Department of Health,NHS Sheffield CCG,31/08/2019,C&M-GMS PCN DES Participation,PRC DELEGATED CO-COMMISSIONING,SHIREGREEN MEDICAL CENTRE,28694170,"1,217.78 "
Department of Health,NHS Sheffield CCG,31/08/2019,C&M-GMS Prem Cost Rent,PRC DELEGATED CO-COMMISSIONING,SHIREGREEN MEDICAL CENTRE,28694170,"1,792.33 "
Department of Health,NHS Sheffield CCG,31/08/2019,C&M-GMS Prem Notional Rent,PRC DELEGATED CO-COMMISSIONING,SHIREGREEN MEDICAL CENTRE,28694170,"5,375.00 "
Department of Health,NHS Sheffield CCG,31/08/2019,C&M-GMS Prem Rates,PRC DELEGATED CO-COMMISSIONING,SHIREGREEN MEDICAL CENTRE,28694170,"1,922.00 "
Department of Health,NHS Sheffield CCG,31/08/2019,C&M-GMS Prof Fees Prescribing,PRC DELEGATED CO-COMMISSIONING,SHIREGREEN MEDICAL CENTRE,28694170,223.67 
Department of Health,NHS Sheffield CCG,31/08/2019,C&M-GMS QOF Aspiration,PRC DELEGATED CO-COMMISSIONING,SHIREGREEN MEDICAL CENTRE,28694170,"6,849.89 "
Department of Health,NHS Sheffield CCG,31/08/2019,C&M-PMS GP Statutory Levy,PRC DELEGATED CO-COMMISSIONING,SLOAN MEDICAL CENTRE,28454718,(464.00)
Department of Health,NHS Sheffield CCG,31/08/2019,C&M-PMS Out of Hours Opt Outs,PRC DELEGATED CO-COMMISSIONING,SLOAN MEDICAL CENTRE,28454718,"(4,471.78)"
Department of Health,NHS Sheffield CCG,31/08/2019,C&M-PMS Contract Value,PRC DELEGATED CO-COMMISSIONING,SLOAN MEDICAL CENTRE,28454719,"95,467.28 "
Department of Health,NHS Sheffield CCG,31/08/2019,C&M-PMS DES Minor Surgery,PRC DELEGATED CO-COMMISSIONING,SLOAN MEDICAL CENTRE,28454719,"2,865.00 "
Department of Health,NHS Sheffield CCG,31/08/2019,C&M-PMS PCN DES Participation,PRC DELEGATED CO-COMMISSIONING,SLOAN MEDICAL CENTRE,28454719,"1,809.97 "
Department of Health,NHS Sheffield CCG,31/08/2019,C&M-PMS PCO Locum Adop/Pat/Mat,PRC DELEGATED CO-COMMISSIONING,SLOAN MEDICAL CENTRE,28454719,"4,975.80 "
Department of Health,NHS Sheffield CCG,31/08/2019,C&M-PMS PCO Other,PRC DELEGATED CO-COMMISSIONING,SLOAN MEDICAL CENTRE,28454719,802.90 
Department of Health,NHS Sheffield CCG,31/08/2019,C&M-PMS Prem Actual Rent,PRC DELEGATED CO-COMMISSIONING,SLOAN MEDICAL CENTRE,28454719,"15,535.83 "
Department of Health,NHS Sheffield CCG,31/08/2019,C&M-PMS Prem Notional Rent,PRC DELEGATED CO-COMMISSIONING,SLOAN MEDICAL CENTRE,28454719,608.33 
Department of Health,NHS Sheffield CCG,31/08/2019,C&M-PMS Prem Rates,PRC DELEGATED CO-COMMISSIONING,SLOAN MEDICAL CENTRE,28454719,"3,423.00 "
Department of Health,NHS Sheffield CCG,31/08/2019,C&M-PMS Prem Water Rates,PRC DELEGATED CO-COMMISSIONING,SLOAN MEDICAL CENTRE,28454719,"1,845.01 "
Department of Health,NHS Sheffield CCG,31/08/2019,C&M-PMS QOF Aspiration,PRC DELEGATED CO-COMMISSIONING,SLOAN MEDICAL CENTRE,28454719,"10,003.70 "
Department of Health,NHS Sheffield CCG,31/08/2019,C&M-PMS Contract Value,PRC DELEGATED CO-COMMISSIONING,SOTHALL MEDICAL CENTRE,28454721,"71,170.89 "
Department of Health,NHS Sheffield CCG,31/08/2019,C&M-PMS DES Minor Surgery,PRC DELEGATED CO-COMMISSIONING,SOTHALL MEDICAL CENTRE,28454721,"1,450.00 "
Department of Health,NHS Sheffield CCG,31/08/2019,C&M-PMS Out of Hours Opt Outs,PRC DELEGATED CO-COMMISSIONING,SOTHALL MEDICAL CENTRE,28454721,30.00 
Department of Health,NHS Sheffield CCG,31/08/2019,C&M-PMS PCN DES Participation,PRC DELEGATED CO-COMMISSIONING,SOTHALL MEDICAL CENTRE,28454721,"1,351.91 "
Department of Health,NHS Sheffield CCG,31/08/2019,C&M-PMS PCO Other,PRC DELEGATED CO-COMMISSIONING,SOTHALL MEDICAL CENTRE,28454721,627.60 
Department of Health,NHS Sheffield CCG,31/08/2019,C&M-PMS Prem Notional Rent,PRC DELEGATED CO-COMMISSIONING,SOTHALL MEDICAL CENTRE,28454721,"5,116.67 "
Department of Health,NHS Sheffield CCG,31/08/2019,C&M-PMS Prem Rates,PRC DELEGATED CO-COMMISSIONING,SOTHALL MEDICAL CENTRE,28454721,"1,412.00 "
Department of Health,NHS Sheffield CCG,31/08/2019,C&M-PMS QOF Aspiration,PRC DELEGATED CO-COMMISSIONING,SOTHALL MEDICAL CENTRE,28454721,"8,630.52 "
Department of Health,NHS Sheffield CCG,31/08/2019,Cont Care-Physical Disab (<65),CHC ADULT FULLY FUNDED,SOUTH YORKSHIRE HOUSING ASSOCIATION LTD,28505462,"95,036.83 "
Department of Health,NHS Sheffield CCG,31/08/2019,Cont Care- Adult 100% Fully Funded,CHC ADULT FULLY FUNDED,SOUTH YORKSHIRE HOUSING ASSOCIATION LTD,28505664,"46,763.59 "
Department of Health,NHS Sheffield CCG,31/08/2019,Cont Care- Adult 100% Fully Funded,CHC ADULT FULLY FUNDED,SOUTH YORKSHIRE HOUSING ASSOCIATION LTD,28505803,"25,500.00 "
Department of Health,NHS Sheffield CCG,31/08/2019,Clinical&Medical-Independent Sector,MENTAL HEALTH CONTRACTS,SOUTH YORKSHIRE HOUSING ASSOCIATION LTD,28539890,"34,435.00 "
Department of Health,NHS Sheffield CCG,31/08/2019,C&M-PMS Contract Value,PRC DELEGATED CO-COMMISSIONING,SOUTHEY GREEN MEDICAL CENTRE,28454724,"25,194.30 "
Department of Health,NHS Sheffield CCG,31/08/2019,C&M-PMS Out of Hours Opt Outs,PRC DELEGATED CO-COMMISSIONING,SOUTHEY GREEN MEDICAL CENTRE,28454724,8.62 
Department of Health,NHS Sheffield CCG,31/08/2019,C&M-PMS PCN DES Participation,PRC DELEGATED CO-COMMISSIONING,SOUTHEY GREEN MEDICAL CENTRE,28454724,475.68 
Department of Health,NHS Sheffield CCG,31/08/2019,C&M-PMS Prem Notional Rent,PRC DELEGATED CO-COMMISSIONING,SOUTHEY GREEN MEDICAL CENTRE,28454724,"3,362.50 "
Department of Health,NHS Sheffield CCG,31/08/2019,C&M-PMS QOF Aspiration,PRC DELEGATED CO-COMMISSIONING,SOUTHEY GREEN MEDICAL CENTRE,28454724,"2,668.69 "
Department of Health,NHS Sheffield CCG,31/08/2019,Clinical&Medical-Independent Sector,NCAS/OATS,SPAMEDICA LTD,28763075,"131,168.68 "
Department of Health,NHS Sheffield CCG,31/08/2019,C&M-GMS DES Minor Surgery,PRC DELEGATED CO-COMMISSIONING,STANNINGTON MEDICAL CENTRE,28694174,170.00 
Department of Health,NHS Sheffield CCG,31/08/2019,C&M-GMS Global Sum,PRC DELEGATED CO-COMMISSIONING,STANNINGTON MEDICAL CENTRE,28694174,"25,840.04 "
Department of Health,NHS Sheffield CCG,31/08/2019,C&M-GMS PCO Other,PRC DELEGATED CO-COMMISSIONING,STANNINGTON MEDICAL CENTRE,28694174,237.70 
Department of Health,NHS Sheffield CCG,31/08/2019,C&M-GMS Prem Notional Rent,PRC DELEGATED CO-COMMISSIONING,STANNINGTON MEDICAL CENTRE,28694174,"2,575.00 "
Department of Health,NHS Sheffield CCG,31/08/2019,C&M-GMS Prem Rates,PRC DELEGATED CO-COMMISSIONING,STANNINGTON MEDICAL CENTRE,28694174,428.00 
Department of Health,NHS Sheffield CCG,31/08/2019,C&M-GMS QOF Aspiration,PRC DELEGATED CO-COMMISSIONING,STANNINGTON MEDICAL CENTRE,28694174,"2,881.70 "
Department of Health,NHS Sheffield CCG,31/08/2019,C&M-GMS Cost of Drugs -Prescribing,LOCAL ENHANCED SERVICES,STONECROFT MEDICAL CENTRE,28694172,688.88 
Department of Health,NHS Sheffield CCG,31/08/2019,C&M-GMS Global Sum,PRC DELEGATED CO-COMMISSIONING,STONECROFT MEDICAL CENTRE,28694172,"32,399.15 "
Department of Health,NHS Sheffield CCG,31/08/2019,C&M-GMS MPIG Correction Factor,PRC DELEGATED CO-COMMISSIONING,STONECROFT MEDICAL CENTRE,28694172,309.13 
Department of Health,NHS Sheffield CCG,31/08/2019,C&M-GMS PCN DES Participation,PRC DELEGATED CO-COMMISSIONING,STONECROFT MEDICAL CENTRE,28694172,657.55 
Department of Health,NHS Sheffield CCG,31/08/2019,C&M-GMS PCO Other,PRC DELEGATED CO-COMMISSIONING,STONECROFT MEDICAL CENTRE,28694172,284.70 
Department of Health,NHS Sheffield CCG,31/08/2019,C&M-GMS Prem Notional Rent,PRC DELEGATED CO-COMMISSIONING,STONECROFT MEDICAL CENTRE,28694172,"2,808.33 "
Department of Health,NHS Sheffield CCG,31/08/2019,C&M-GMS Prem Rates,PRC DELEGATED CO-COMMISSIONING,STONECROFT MEDICAL CENTRE,28694172,"1,215.00 "
Department of Health,NHS Sheffield CCG,31/08/2019,C&M-GMS Prof Fees Prescribing,PRC DELEGATED CO-COMMISSIONING,STONECROFT MEDICAL CENTRE,28694172,139.50 
Department of Health,NHS Sheffield CCG,31/08/2019,C&M-GMS QOF Aspiration,PRC DELEGATED CO-COMMISSIONING,STONECROFT MEDICAL CENTRE,28694172,"4,228.40 "
Department of Health,NHS Sheffield CCG,31/08/2019,Cont Care-Physical Disab (<65),CHC ADULT FULLY FUNDED,SUSASH GB LTD T/A EAGLE HOUSE,28505494,"33,109.16 "
Department of Health,NHS Sheffield CCG,31/08/2019,Clinical&Medical-Independent Sector,MENTAL HEALTH CONTRACTS,SUSASH GB LTD T/A EAGLE HOUSE,28539889,"30,092.00 "
Department of Health,NHS Sheffield CCG,31/08/2019,C&M-GMS Cost of Drugs -Prescribing,LOCAL ENHANCED SERVICES,TOTLEY RISE MEDICAL CENTRE,28694176,823.62 
Department of Health,NHS Sheffield CCG,31/08/2019,C&M-GMS DES Minor Surgery,PRC DELEGATED CO-COMMISSIONING,TOTLEY RISE MEDICAL CENTRE,28694176,240.00 
Department of Health,NHS Sheffield CCG,31/08/2019,C&M-GMS Global Sum,PRC DELEGATED CO-COMMISSIONING,TOTLEY RISE MEDICAL CENTRE,28694176,"25,128.99 "
Department of Health,NHS Sheffield CCG,31/08/2019,C&M-GMS MPIG Correction Factor,PRC DELEGATED CO-COMMISSIONING,TOTLEY RISE MEDICAL CENTRE,28694176,51.57 
Department of Health,NHS Sheffield CCG,31/08/2019,C&M-GMS PCN DES Participation,PRC DELEGATED CO-COMMISSIONING,TOTLEY RISE MEDICAL CENTRE,28694176,504.35 
Department of Health,NHS Sheffield CCG,31/08/2019,C&M-GMS Prem Notional Rent,PRC DELEGATED CO-COMMISSIONING,TOTLEY RISE MEDICAL CENTRE,28694176,"1,604.17 "
Department of Health,NHS Sheffield CCG,31/08/2019,C&M-GMS Prof Fees Prescribing,PRC DELEGATED CO-COMMISSIONING,TOTLEY RISE MEDICAL CENTRE,28694176,187.60 
Department of Health,NHS Sheffield CCG,31/08/2019,C&M-GMS QOF Aspiration,PRC DELEGATED CO-COMMISSIONING,TOTLEY RISE MEDICAL CENTRE,28694176,"2,304.18 "
Department of Health,NHS Sheffield CCG,31/08/2019,C&M-GMS Cost of Drugs -Prescribing,LOCAL ENHANCED SERVICES,TRAMWAYS MEDICAL CENTRE,28694178,"1,674.05 "
Department of Health,NHS Sheffield CCG,31/08/2019,C&M-GMS DES Learn Dsblty Hlth Chk,PRC DELEGATED CO-COMMISSIONING,TRAMWAYS MEDICAL CENTRE,28694178,420.00 
Department of Health,NHS Sheffield CCG,31/08/2019,C&M-GMS DES Minor Surgery,PRC DELEGATED CO-COMMISSIONING,TRAMWAYS MEDICAL CENTRE,28694178,"7,740.00 "
Department of Health,NHS Sheffield CCG,31/08/2019,C&M-GMS Global Sum,PRC DELEGATED CO-COMMISSIONING,TRAMWAYS MEDICAL CENTRE,28694178,"61,216.66 "
Department of Health,NHS Sheffield CCG,31/08/2019,C&M-GMS PCN DES Participation,PRC DELEGATED CO-COMMISSIONING,TRAMWAYS MEDICAL CENTRE,28694178,"1,263.94 "
Department of Health,NHS Sheffield CCG,31/08/2019,C&M-GMS PCO Other,PRC DELEGATED CO-COMMISSIONING,TRAMWAYS MEDICAL CENTRE,28694178,534.60 
Department of Health,NHS Sheffield CCG,31/08/2019,C&M-GMS Prem Cost Rent,PRC DELEGATED CO-COMMISSIONING,TRAMWAYS MEDICAL CENTRE,28694178,"4,012.75 "
Department of Health,NHS Sheffield CCG,31/08/2019,C&M-GMS Prem Rates,PRC DELEGATED CO-COMMISSIONING,TRAMWAYS MEDICAL CENTRE,28694178,"1,098.00 "
Department of Health,NHS Sheffield CCG,31/08/2019,C&M-GMS Prof Fees Prescribing,PRC DELEGATED CO-COMMISSIONING,TRAMWAYS MEDICAL CENTRE,28694178,223.67 
Department of Health,NHS Sheffield CCG,31/08/2019,C&M-GMS QOF Aspiration,PRC DELEGATED CO-COMMISSIONING,TRAMWAYS MEDICAL CENTRE,28694178,"5,645.42 "
Department of Health,NHS Sheffield CCG,31/08/2019,Hcare Srv Rec NHS Trust-Contract Baseline,ACUTE COMMISSIONING,UNITED LINCOLNSHIRE HOSPITALS NHS TRUST,28439416,"26,180.60 "
Department of Health,NHS Sheffield CCG,31/08/2019,C&M-PMS Contract Value,PRC DELEGATED CO-COMMISSIONING,UNIVERSITY HEALTH SERVICE,28454729,"(17,760.72)"
Department of Health,NHS Sheffield CCG,31/08/2019,C&M-PMS GP Statutory Levy,PRC DELEGATED CO-COMMISSIONING,UNIVERSITY HEALTH SERVICE,28454729,"(1,224.13)"
Department of Health,NHS Sheffield CCG,31/08/2019,C&M-PMS Out of Hours Opt Outs,PRC DELEGATED CO-COMMISSIONING,UNIVERSITY HEALTH SERVICE,28454729,"(8,693.25)"
Department of Health,NHS Sheffield CCG,31/08/2019,C&M-PMS Contract Value,PRC DELEGATED CO-COMMISSIONING,UNIVERSITY HEALTH SERVICE,28485138,"179,785.50 "
Department of Health,NHS Sheffield CCG,31/08/2019,C&M-PMS DES Extended Hours Access,PRC DELEGATED CO-COMMISSIONING,UNIVERSITY HEALTH SERVICE,28485138,"4,573.92 "
Department of Health,NHS Sheffield CCG,31/08/2019,C&M-PMS DES Minor Surgery,PRC DELEGATED CO-COMMISSIONING,UNIVERSITY HEALTH SERVICE,28485138,"1,275.00 "
Department of Health,NHS Sheffield CCG,31/08/2019,C&M-PMS Out of Hours Opt Outs,PRC DELEGATED CO-COMMISSIONING,UNIVERSITY HEALTH SERVICE,28485138,860.32 
Department of Health,NHS Sheffield CCG,31/08/2019,C&M-PMS PCN DES Clinical Director,PRC DELEGATED CO-COMMISSIONING,UNIVERSITY HEALTH SERVICE,28485138,"2,139.21 "
Department of Health,NHS Sheffield CCG,31/08/2019,C&M-PMS PCN DES PCN support,LOCAL ENHANCED SERVICES,UNIVERSITY HEALTH SERVICE,28485138,"4,682.13 "
Department of Health,NHS Sheffield CCG,31/08/2019,C&M-PMS PCN DES Participation,PRC DELEGATED CO-COMMISSIONING,UNIVERSITY HEALTH SERVICE,28485138,"3,535.52 "
Department of Health,NHS Sheffield CCG,31/08/2019,C&M-PMS PCO Locum Adop/Pat/Mat,PRC DELEGATED CO-COMMISSIONING,UNIVERSITY HEALTH SERVICE,28485138,"15,828.68 "
Department of Health,NHS Sheffield CCG,31/08/2019,C&M-PMS Prem Notional Rent,PRC DELEGATED CO-COMMISSIONING,UNIVERSITY HEALTH SERVICE,28485138,"15,833.33 "
Department of Health,NHS Sheffield CCG,31/08/2019,C&M-PMS QOF Aspiration,PRC DELEGATED CO-COMMISSIONING,UNIVERSITY HEALTH SERVICE,28485138,"4,031.41 "
Department of Health,NHS Sheffield CCG,31/08/2019,Other Research Exp,Nursing and Quality Programme,UNIVERSITY OF SHEFFIELD,28439734,"65,625.31 "
Department of Health,NHS Sheffield CCG,31/08/2019,C&M-GMS Cost of Drugs -Prescribing,LOCAL ENHANCED SERVICES,UPPERTHORPE MEDICAL CENTRE,28694181,"2,876.18 "
Department of Health,NHS Sheffield CCG,31/08/2019,C&M-GMS DES Learn Dsblty Hlth Chk,PRC DELEGATED CO-COMMISSIONING,UPPERTHORPE MEDICAL CENTRE,28694181,140.00 
Department of Health,NHS Sheffield CCG,31/08/2019,C&M-GMS DES Minor Surgery,PRC DELEGATED CO-COMMISSIONING,UPPERTHORPE MEDICAL CENTRE,28694181,"1,070.00 "
Department of Health,NHS Sheffield CCG,31/08/2019,C&M-GMS Global Sum,PRC DELEGATED CO-COMMISSIONING,UPPERTHORPE MEDICAL CENTRE,28694181,"83,141.65 "
Department of Health,NHS Sheffield CCG,31/08/2019,C&M-GMS MPIG Correction Factor,PRC DELEGATED CO-COMMISSIONING,UPPERTHORPE MEDICAL CENTRE,28694181,662.87 
Department of Health,NHS Sheffield CCG,31/08/2019,C&M-GMS PCN DES Participation,PRC DELEGATED CO-COMMISSIONING,UPPERTHORPE MEDICAL CENTRE,28694181,"1,681.95 "
Department of Health,NHS Sheffield CCG,31/08/2019,C&M-GMS Prem Notional Rent,PRC DELEGATED CO-COMMISSIONING,UPPERTHORPE MEDICAL CENTRE,28694181,"2,497.83 "
Department of Health,NHS Sheffield CCG,31/08/2019,C&M-GMS Prem Rates,PRC DELEGATED CO-COMMISSIONING,UPPERTHORPE MEDICAL CENTRE,28694181,"2,318.00 "
Department of Health,NHS Sheffield CCG,31/08/2019,C&M-GMS Prof Fees Prescribing,PRC DELEGATED CO-COMMISSIONING,UPPERTHORPE MEDICAL CENTRE,28694181,317.49 
Department of Health,NHS Sheffield CCG,31/08/2019,C&M-GMS QOF Aspiration,PRC DELEGATED CO-COMMISSIONING,UPPERTHORPE MEDICAL CENTRE,28694181,"9,072.83 "
Department of Health,NHS Sheffield CCG,31/08/2019,C&M-PMS Contract Value,PRC DELEGATED CO-COMMISSIONING,UPWELL STREET SURGERY,28454732,"37,734.18 "
Department of Health,NHS Sheffield CCG,31/08/2019,C&M-PMS DES Minor Surgery,PRC DELEGATED CO-COMMISSIONING,UPWELL STREET SURGERY,28454732,320.00 
Department of Health,NHS Sheffield CCG,31/08/2019,C&M-PMS Out of Hours Opt Outs,PRC DELEGATED CO-COMMISSIONING,UPWELL STREET SURGERY,28454732,27.18 
Department of Health,NHS Sheffield CCG,31/08/2019,C&M-PMS PCN DES Participation,PRC DELEGATED CO-COMMISSIONING,UPWELL STREET SURGERY,28454732,713.41 
Department of Health,NHS Sheffield CCG,31/08/2019,C&M-PMS PCO Other,PRC DELEGATED CO-COMMISSIONING,UPWELL STREET SURGERY,28454732,324.80 
Department of Health,NHS Sheffield CCG,31/08/2019,C&M-PMS Prem Notional Rent,PRC DELEGATED CO-COMMISSIONING,UPWELL STREET SURGERY,28454732,"8,137.50 "
Department of Health,NHS Sheffield CCG,31/08/2019,C&M-PMS Prem Rates,PRC DELEGATED CO-COMMISSIONING,UPWELL STREET SURGERY,28454732,"1,340.00 "
Department of Health,NHS Sheffield CCG,31/08/2019,C&M-PMS QOF Aspiration,PRC DELEGATED CO-COMMISSIONING,UPWELL STREET SURGERY,28454732,"4,056.38 "
Department of Health,NHS Sheffield CCG,31/08/2019,C&M-PMS Contract Value,PRC DELEGATED CO-COMMISSIONING,VALLEY MEDICAL CENTRE,28454735,"78,959.52 "
Department of Health,NHS Sheffield CCG,31/08/2019,C&M-PMS DES Extended Hours Access,PRC DELEGATED CO-COMMISSIONING,VALLEY MEDICAL CENTRE,28454735,"2,533.07 "
Department of Health,NHS Sheffield CCG,31/08/2019,C&M-PMS DES Minor Surgery,PRC DELEGATED CO-COMMISSIONING,VALLEY MEDICAL CENTRE,28454735,"1,875.00 "
Department of Health,NHS Sheffield CCG,31/08/2019,C&M-PMS PCN DES Clinical Director,PRC DELEGATED CO-COMMISSIONING,VALLEY MEDICAL CENTRE,28454735,"1,184.71 "
Department of Health,NHS Sheffield CCG,31/08/2019,C&M-PMS PCN DES PCN support,LOCAL ENHANCED SERVICES,VALLEY MEDICAL CENTRE,28454735,"2,593.00 "
Department of Health,NHS Sheffield CCG,31/08/2019,C&M-PMS PCN DES Participation,PRC DELEGATED CO-COMMISSIONING,VALLEY MEDICAL CENTRE,28454735,"1,492.89 "
Department of Health,NHS Sheffield CCG,31/08/2019,C&M-PMS PCO Locum Adop/Pat/Mat,PRC DELEGATED CO-COMMISSIONING,VALLEY MEDICAL CENTRE,28454735,"19,078.46 "
Department of Health,NHS Sheffield CCG,31/08/2019,C&M-PMS Prem Rates,PRC DELEGATED CO-COMMISSIONING,VALLEY MEDICAL CENTRE,28454735,"1,664.00 "
Department of Health,NHS Sheffield CCG,31/08/2019,C&M-PMS Prem Water Rates,PRC DELEGATED CO-COMMISSIONING,VALLEY MEDICAL CENTRE,28454735,300.91 
Department of Health,NHS Sheffield CCG,31/08/2019,C&M-PMS QOF Aspiration,PRC DELEGATED CO-COMMISSIONING,VALLEY MEDICAL CENTRE,28454735,"8,453.91 "
Department of Health,NHS Sheffield CCG,31/08/2019,Clinical&Medical-Voluntary Sector,COMMUNITY SERVICES,VOLUNTARY ACTION SHEFFIELD,28386835,"45,000.00 "
Department of Health,NHS Sheffield CCG,31/08/2019,C&M-GMS Cost of Drugs -Prescribing,LOCAL ENHANCED SERVICES,WALKLEY HOUSE MEDICAL CENTRE,28694187,528.98 
Department of Health,NHS Sheffield CCG,31/08/2019,C&M-GMS DES Minor Surgery,PRC DELEGATED CO-COMMISSIONING,WALKLEY HOUSE MEDICAL CENTRE,28694187,"1,395.00 "
Department of Health,NHS Sheffield CCG,31/08/2019,C&M-GMS Global Sum,PRC DELEGATED CO-COMMISSIONING,WALKLEY HOUSE MEDICAL CENTRE,28694187,"85,009.73 "
Department of Health,NHS Sheffield CCG,31/08/2019,C&M-GMS PCN DES Participation,PRC DELEGATED CO-COMMISSIONING,WALKLEY HOUSE MEDICAL CENTRE,28694187,"1,749.49 "
Department of Health,NHS Sheffield CCG,31/08/2019,C&M-GMS Prem Notional Rent,PRC DELEGATED CO-COMMISSIONING,WALKLEY HOUSE MEDICAL CENTRE,28694187,"5,635.50 "
Department of Health,NHS Sheffield CCG,31/08/2019,C&M-GMS Prem Rates,PRC DELEGATED CO-COMMISSIONING,WALKLEY HOUSE MEDICAL CENTRE,28694187,"1,845.00 "
Department of Health,NHS Sheffield CCG,31/08/2019,C&M-GMS Prof Fees Prescribing,PRC DELEGATED CO-COMMISSIONING,WALKLEY HOUSE MEDICAL CENTRE,28694187,127.48 
Department of Health,NHS Sheffield CCG,31/08/2019,C&M-GMS QOF Aspiration,PRC DELEGATED CO-COMMISSIONING,WALKLEY HOUSE MEDICAL CENTRE,28694187,"8,602.90 "
Department of Health,NHS Sheffield CCG,31/08/2019,C&M-GMS Cost of Drugs -Prescribing,LOCAL ENHANCED SERVICES,WHITE HOUSE SURGERY SHEFFIELD,28694185,"1,548.11 "
Department of Health,NHS Sheffield CCG,31/08/2019,C&M-GMS DES Learn Dsblty Hlth Chk,PRC DELEGATED CO-COMMISSIONING,WHITE HOUSE SURGERY SHEFFIELD,28694185,140.00 
Department of Health,NHS Sheffield CCG,31/08/2019,C&M-GMS DES Minor Surgery,PRC DELEGATED CO-COMMISSIONING,WHITE HOUSE SURGERY SHEFFIELD,28694185,330.00 
Department of Health,NHS Sheffield CCG,31/08/2019,C&M-GMS Global Sum,PRC DELEGATED CO-COMMISSIONING,WHITE HOUSE SURGERY SHEFFIELD,28694185,"51,291.41 "
Department of Health,NHS Sheffield CCG,31/08/2019,C&M-GMS MPIG Correction Factor,PRC DELEGATED CO-COMMISSIONING,WHITE HOUSE SURGERY SHEFFIELD,28694185,695.65 
Department of Health,NHS Sheffield CCG,31/08/2019,C&M-GMS PCN DES Participation,PRC DELEGATED CO-COMMISSIONING,WHITE HOUSE SURGERY SHEFFIELD,28694185,"1,038.45 "
Department of Health,NHS Sheffield CCG,31/08/2019,C&M-GMS Prem Notional Rent,PRC DELEGATED CO-COMMISSIONING,WHITE HOUSE SURGERY SHEFFIELD,28694185,"9,412.50 "
Department of Health,NHS Sheffield CCG,31/08/2019,C&M-GMS Prem Rates,PRC DELEGATED CO-COMMISSIONING,WHITE HOUSE SURGERY SHEFFIELD,28694185,"2,200.83 "
Department of Health,NHS Sheffield CCG,31/08/2019,C&M-GMS Prof Fees Prescribing,PRC DELEGATED CO-COMMISSIONING,WHITE HOUSE SURGERY SHEFFIELD,28694185,242.92 
Department of Health,NHS Sheffield CCG,31/08/2019,C&M-GMS QOF Aspiration,PRC DELEGATED CO-COMMISSIONING,WHITE HOUSE SURGERY SHEFFIELD,28694185,"6,233.52 "
Department of Health,NHS Sheffield CCG,31/08/2019,Cont Care-Physical Disab (<65),CHC ADULT FULLY FUNDED,WILLOWBECK HEALTH CARE LTD,28505718,"115,367.87 "
Department of Health,NHS Sheffield CCG,31/08/2019,C&M-PMS Contract Value,PRC DELEGATED CO-COMMISSIONING,WINCOBANK MEDICAL CENTRE,28454744,"62,282.64 "
Department of Health,NHS Sheffield CCG,31/08/2019,C&M-PMS Out of Hours Opt Outs,PRC DELEGATED CO-COMMISSIONING,WINCOBANK MEDICAL CENTRE,28454744,29.90 
Department of Health,NHS Sheffield CCG,31/08/2019,C&M-PMS PCN DES Participation,PRC DELEGATED CO-COMMISSIONING,WINCOBANK MEDICAL CENTRE,28454744,"1,179.69 "
Department of Health,NHS Sheffield CCG,31/08/2019,C&M-PMS Prem Healthcentre Rent,PRC DELEGATED CO-COMMISSIONING,WINCOBANK MEDICAL CENTRE,28454744,"45,121.79 "
Department of Health,NHS Sheffield CCG,31/08/2019,C&M-PMS QOF Aspiration,PRC DELEGATED CO-COMMISSIONING,WINCOBANK MEDICAL CENTRE,28454744,"6,283.36 "
Department of Health,NHS Sheffield CCG,31/08/2019,C&M-PMS Contract Value,PRC DELEGATED CO-COMMISSIONING,WOODHOUSE HEALTH CENTRE,28454740,"100,768.86 "
Department of Health,NHS Sheffield CCG,31/08/2019,C&M-PMS DES Learn Dsblty Hlth Chk,PRC DELEGATED CO-COMMISSIONING,WOODHOUSE HEALTH CENTRE,28454740,700.00 
Department of Health,NHS Sheffield CCG,31/08/2019,C&M-PMS DES Minor Surgery,PRC DELEGATED CO-COMMISSIONING,WOODHOUSE HEALTH CENTRE,28454740,"2,880.00 "
Department of Health,NHS Sheffield CCG,31/08/2019,C&M-PMS Out of Hours Opt Outs,PRC DELEGATED CO-COMMISSIONING,WOODHOUSE HEALTH CENTRE,28454740,17.08 
Department of Health,NHS Sheffield CCG,31/08/2019,C&M-PMS PCN DES Participation,PRC DELEGATED CO-COMMISSIONING,WOODHOUSE HEALTH CENTRE,28454740,"1,906.58 "
Department of Health,NHS Sheffield CCG,31/08/2019,C&M-PMS PCO Other,PRC DELEGATED CO-COMMISSIONING,WOODHOUSE HEALTH CENTRE,28454740,746.40 
Department of Health,NHS Sheffield CCG,31/08/2019,C&M-PMS Prem Notional Rent,PRC DELEGATED CO-COMMISSIONING,WOODHOUSE HEALTH CENTRE,28454740,"6,338.58 "
Department of Health,NHS Sheffield CCG,31/08/2019,C&M-PMS Prem Rates,PRC DELEGATED CO-COMMISSIONING,WOODHOUSE HEALTH CENTRE,28454740,"1,757.00 "
Department of Health,NHS Sheffield CCG,31/08/2019,C&M-PMS Prem Water Rates,PRC DELEGATED CO-COMMISSIONING,WOODHOUSE HEALTH CENTRE,28454740,521.78 
Department of Health,NHS Sheffield CCG,31/08/2019,C&M-PMS QOF Aspiration,PRC DELEGATED CO-COMMISSIONING,WOODHOUSE HEALTH CENTRE,28454740,"13,912.30 "
Department of Health,NHS Sheffield CCG,31/08/2019,C&M-PMS Contract Value,PRC DELEGATED CO-COMMISSIONING,WOODSEATS MEDICAL CENTRE,28461996,"78,198.50 "
Department of Health,NHS Sheffield CCG,31/08/2019,C&M-PMS DES Learn Dsblty Hlth Chk,PRC DELEGATED CO-COMMISSIONING,WOODSEATS MEDICAL CENTRE,28461996,"1,260.00 "
Department of Health,NHS Sheffield CCG,31/08/2019,C&M-PMS DES Minor Surgery,PRC DELEGATED CO-COMMISSIONING,WOODSEATS MEDICAL CENTRE,28461996,"4,915.00 "
Department of Health,NHS Sheffield CCG,31/08/2019,C&M-PMS PCN DES Participation,PRC DELEGATED CO-COMMISSIONING,WOODSEATS MEDICAL CENTRE,28461996,"1,439.13 "
Department of Health,NHS Sheffield CCG,31/08/2019,C&M-PMS PCO Other,PRC DELEGATED CO-COMMISSIONING,WOODSEATS MEDICAL CENTRE,28461996,622.70 
Department of Health,NHS Sheffield CCG,31/08/2019,C&M-PMS Prem Notional Rent,PRC DELEGATED CO-COMMISSIONING,WOODSEATS MEDICAL CENTRE,28461996,"11,666.67 "
Department of Health,NHS Sheffield CCG,31/08/2019,C&M-PMS Prem Rates,PRC DELEGATED CO-COMMISSIONING,WOODSEATS MEDICAL CENTRE,28461996,"3,100.00 "
Department of Health,NHS Sheffield CCG,31/08/2019,C&M-PMS Prem Water Rates,PRC DELEGATED CO-COMMISSIONING,WOODSEATS MEDICAL CENTRE,28461996,400.38 
Department of Health,NHS Sheffield CCG,31/08/2019,C&M-PMS QOF Aspiration,PRC DELEGATED CO-COMMISSIONING,WOODSEATS MEDICAL CENTRE,28461996,"8,242.64 "
Department of Health,NHS Sheffield CCG,31/08/2019,Hcare Srv Rec Fdtn Trust-Non Contract,NCAS/OATS,YORK TEACHING HOSPITAL NHS FOUNDATION TRUST,28657892,"49,334.39 "
Department of Health,NHS Sheffield CCG,31/08/2019,"Books, Journals & Subscr",COUNSELLING SERVICES,YORKSHIRE & HUMBER AHSN LTD,28763006,"48,994.80 "
Department of Health,NHS Sheffield CCG,31/08/2019,Hcare Srv Rec NHS Trust-Contract Baseline,AMBULANCE SERVICES,YORKSHIRE AMBULANCE SERVICE NHS TRUST,28386821,"125,843.75 "
Department of Health,NHS Sheffield CCG,31/08/2019,Hcare Srv Rec NHS Trust-Contract Baseline,AMBULANCE SERVICES,YORKSHIRE AMBULANCE SERVICE NHS TRUST,28386822,"1,674,240.00 "
Department of Health,NHS Sheffield CCG,31/08/2019,Hcare Srv Rec NHS Trust-Contract Baseline,NHS 111,YORKSHIRE AMBULANCE SERVICE NHS TRUST,28386825,"133,605.27 "
Department of Health,NHS Sheffield CCG,31/08/2019,Hcare Srv Rec NHS Trust-Contract Baseline,PATIENT TRANSPORT,YORKSHIRE AMBULANCE SERVICE NHS TRUST,28386826,"266,438.02 "
